Workbook

Sheet SUMMARY
A1: [3.85 M Loan Base]-5 YEARS - PROFIT & LOSS STATEMENT | F1: Sharon Springs Inc.
C2: Year 1 | D2: Year 2 | E2: Year 3 | F2: Year 4 | G2: Year 5
A3: Revenues | B3: Lodging (SPA RESORT 10ROOMS) | C3: ='F.P.YEAR 1'!S10 -> 406714.2857 | D3: ='F.P.YEAR 2'!S11 -> 406714.2857 | E3: ='F.P.YEAR 3'!S11 -> 406714.2857 | F3: ='F.P.YEAR 4'!S10 -> 406714.2857 | G3: ='F.P.YEAR 5'!S10 -> 406714.2857
B4: Spa Service & Program | C4: ='F.P.YEAR 1'!S14+'F.P.YEAR 1'!S18+'F.P.YEAR 1'!S22 -> 4185982.143 | D4: ='F.P.YEAR 2'!S15+'F.P.YEAR 2'!S19+'F.P.YEAR 2'!S23 -> 6209464.286 | E4: ='F.P.YEAR 3'!S15+'F.P.YEAR 3'!S19+'F.P.YEAR 3'!S23 -> 6830410.714 | F4: ='F.P.YEAR 4'!S15+'F.P.YEAR 4'!S23 -> 7513451.786 | G4: ='F.P.YEAR 5'!S15+'F.P.YEAR 5'!S23 -> 8264796.964
B5: Food & Beverage | C5: ='F.P.YEAR 1'!S30+'F.P.YEAR 1'!S34 -> 508050 | D5: ='F.P.YEAR 2'!S31+'F.P.YEAR 2'!S35 -> 702675 | E5: ='F.P.YEAR 3'!S31+'F.P.YEAR 3'!S35 -> 761062.5 | F5: ='F.P.YEAR 4'!S31 -> 706488.75 | G5: ='F.P.YEAR 5'!S31 -> 777137.625
B6: Gift | C6: ='F.P.YEAR 1'!S38 -> 0 | D6: ='F.P.YEAR 2'!S39 -> 0 | E6: ='F.P.YEAR 3'!S39 -> 0 | F6: ='F.P.YEAR 3'!T39 -> 0 | G6: ='F.P.YEAR 3'!U39 -> 0
B7: Gross Revenues | C7: =SUM(C3:C6) -> 5100746.429 | D7: =SUM(D3:D6) -> 7318853.571 | E7: =SUM(E3:E6) -> 7998187.5 | F7: =SUM(F3:F6) -> 8626654.821 | G7: 9448648.875
A8: Cost of Goods Sold | B8: F & B Cost | C8: ='F.P.YEAR 1'!S45 -> 77850 | D8: ='F.P.YEAR 2'!S46 -> 116775 | E8: ='F.P.YEAR 3'!S46 -> 128452.5 | F8: ='F.P.YEAR 4'!S46 -> 141297.75 | G8: ='F.P.YEAR 5'!S46 -> 155427.525
B9: Gift Supply | C9: ='F.P.YEAR 1'!S46 -> 0 | D9: ='F.P.YEAR 2'!S47 -> 0 | E9: ='F.P.YEAR 3'!S47 -> 0 | F9: ='F.P.YEAR 3'!T47 -> 0 | G9: ='F.P.YEAR 3'!U47 -> 0
B10: Total COGS | C10: =SUM(C8:C9) -> 77850 | D10: =SUM(D8:D9) -> 116775 | E10: =SUM(E8:E9) -> 128452.5 | F10: =SUM(F8:F9) -> 141297.75 | G10: 155427.525
B11: Admission & Spa Service % | C11: 1 | D11: 1 | E11: 1 | F11: 1 | G11: 1
A12: Gross Profit | B12: F & B Profit % | C12: 0.8 | D12: 0.8 | E12: 0.8 | F12: 0.8 | G12: 0.8
B13: Gift Supply Profit % | C13: =1-C9/C6 ->  | F13: =1-F9/F6 -> 
B14: Total Gross Profit | C14: =C7-C10 -> 5022896.429 | D14: =D7-D10 -> 7202078.571 | E14: =E7-E10 -> 7869735 | F14: =F7-F10 -> 8485357.071 | G14: =G7-G10 -> 9293221.35
A15: Expenses | B15: Payroll
B16: Payroll | C16: ='F.P.YEAR 1'!S52 -> 2027400 | D16: ='F.P.YEAR 2'!S53 -> 2128770 | E16: ='F.P.YEAR 3'!S53 -> 2235208.5 | F16: ='F.P.YEAR 4'!S53 -> 2346968.925 | G16: ='F.P.YEAR 5'!S53 -> 2464317.371
B17: Payroll Tax | C17: ='F.P.YEAR 1'!S53 -> 152896 | D17: ='F.P.YEAR 2'!S54 -> 153533.385 | E17: ='F.P.YEAR 3'!S54 -> 159017.6542 | F17: ='F.P.YEAR 4'!S54 -> 166968.537 | G17: ='F.P.YEAR 5'!S54 -> 175316.9638
B18: Total Payroll Expense | C18: =SUM(C16:C17) -> 2180296 | D18: =SUM(D16:D17) -> 2282303.385 | E18: =SUM(E16:E17) -> 2394226.154 | F18: =SUM(F16:F17) -> 2513937.462 | G18: 2639634.335
B19: Utilites
B20: Electric | C20: ='F.P.YEAR 1'!S56 -> 63461.52 | D20: ='F.P.YEAR 2'!S57 -> 63461.52 | E20: ='F.P.YEAR 3'!S57 -> 63461.52 | F20: ='F.P.YEAR 4'!S57 -> 63461.52 | G20: ='F.P.YEAR 5'!S57 -> 63461.52
B21: Gas | C21: ='F.P.YEAR 1'!S55 -> 52315.45 | D21: ='F.P.YEAR 2'!S56 -> 52315.45 | E21: ='F.P.YEAR 3'!S56 -> 52315.45 | F21: ='F.P.YEAR 4'!S56 -> 52315.45 | G21: ='F.P.YEAR 5'!S56 -> 52315.45
B22: Water | C22: ='F.P.YEAR 1'!S57 -> 29353.23745 | D22: ='F.P.YEAR 2'!S58 -> 32681.99617 | E22: ='F.P.YEAR 3'!S58 -> 33680.62379 | F22: ='F.P.YEAR 4'!S58 -> 34779.11417 | G22: ='F.P.YEAR 5'!S58 -> 35987.45359
B23: Phone, Internet,Cable | C23: ='F.P.YEAR 1'!S58 -> 18000 | D23: ='F.P.YEAR 2'!S59 -> 18000 | E23: ='F.P.YEAR 3'!S59 -> 18000 | F23: ='F.P.YEAR 4'!S59 -> 18000 | G23: ='F.P.YEAR 5'!S59 -> 18000
B24: Total Utility Expense | C24: =SUM(C20:C23) -> 163130.2074 | D24: =SUM(D20:D23) -> 166458.9662 | E24: =SUM(E20:E23) -> 167457.5938 | F24: =SUM(F20:F23) -> 168556.0842 | G24: 169764.4236
B25: Other Expenses
B26: Property Tax | C26: ='F.P.YEAR 1'!S51 -> 48547 | D26: ='F.P.YEAR 2'!S52 -> 60684 | E26: ='F.P.YEAR 3'!S52 -> 66752 | F26: ='F.P.YEAR 4'!S52 -> 66752 | G26: ='F.P.YEAR 5'!S52 -> 66752
B27: Sales Tax | C27: ='F.P.YEAR 1'!S54 -> 408059.7143 | D27: ='F.P.YEAR 2'!S55 -> 585508.2857 | E27: ='F.P.YEAR 3'!S55 -> 639855 | F27: ='F.P.YEAR 4'!S55 -> 699636.3857 | G27: ='F.P.YEAR 5'!S55 -> 765395.91
B28: Bank Charge & Credit Card Fee | C28: ='F.P.YEAR 1'!S50 -> 102014.9286 | D28: ='F.P.YEAR 2'!S51 -> 146377.0714 | E28: ='F.P.YEAR 3'!S51 -> 159963.75 | F28: ='F.P.YEAR 4'!S51 -> 174909.0964 | G28: ='F.P.YEAR 5'!S51 -> 191348.9775
B29: Insurance (Property, Liability, Auto, Worker's comp) | C29: ='F.P.YEAR 1'!S63 -> 94848 | D29: ='F.P.YEAR 2'!S64 -> 94848 | E29: =D29 -> 94848 | F29: =E29 -> 94848 | G29: 94848
B30: Advertising & Promotion | C30: ='F.P.YEAR 1'!S62 -> 300000 | D30: ='F.P.YEAR 2'!S63 -> 144000 | E30: =D30 -> 144000 | F30: =E30 -> 144000 | G30: 144000
B31: Professional Fees | C31: ='F.P.YEAR 1'!S66 -> 48000 | D31: ='F.P.YEAR 2'!S67 -> 48000 | E31: =D31 -> 48000 | F31: =E31 -> 48000 | G31: 48000
B32: Bath House Supply | C32: ='F.P.YEAR 1'!S60 -> 21625 | D32: ='F.P.YEAR 2'!S61 -> 32437.5 | E32: ='F.P.YEAR 3'!S61 -> 35681.25 | F32: ='F.P.YEAR 4'!S61 -> 39249.375 | G32: ='F.P.YEAR 5'!S61 -> 43174.3125
B33: Laundry & Sanitation | C33: ='F.P.YEAR 1'!S59 -> 48471.8 | D33: ='F.P.YEAR 2'!S60 -> 60771.78 | E33: ='F.P.YEAR 3'!S60 -> 64192.134 | F33: ='F.P.YEAR 4'!S60 -> 67954.5234 | G33: ='F.P.YEAR 5'!S60 -> 72093.15174
B34: Printing (brouchure,sign) | C34: ='F.P.YEAR 1'!S70 -> 24000 | D34: ='F.P.YEAR 2'!S71 -> 24000 | E34: =D34 -> 24000 | F34: =E34 -> 24000 | G34: 24000
B36: Total Other Expenses | C36: =SUM(C26:C33) -> 1071566.443 | D36: =SUM(D26:D33) -> 1172626.637 | E36: =SUM(E26:E33) -> 1253292.134 | F36: =SUM(F26:F33) -> 1335349.381 | G36: 1425612.352
B37: Miscellaneous
B38: Dues & Subscription | C38: ='F.P.YEAR 1'!S74 -> 2499.6 | D38: ='F.P.YEAR 2'!S75 -> 2499.6 | E38: =D38 -> 2499.6 | F38: =E38 -> 2499.6 | G38: 2499.6
B39: License & Permit | C39: ='F.P.YEAR 1'!S68 -> 9996 | D39: ='F.P.YEAR 2'!S69 -> 9996 | E39: =D39 -> 9996 | F39: =E39 -> 9996 | G39: 9996
B40: Postage & Delivery | C40: ='F.P.YEAR 1'!S69 -> 8004 | D40: ='F.P.YEAR 2'!S70 -> 8004 | E40: =D40 -> 8004 | F40: =E40 -> 8004 | G40: 8004
B41: Pest Control | C41: ='F.P.YEAR 1'!S67 -> 24996 | D41: ='F.P.YEAR 2'!S68 -> 24996 | E41: =D41 -> 24996 | F41: =E41 -> 24996 | G41: 24996
B42: Total Miscellaneous | C42: =SUM(C38:C76) -> 268079.2821 | D42: =SUM(D38:D76) -> 268079.2821 | E42: =SUM(E38:E76) -> 268079.2821 | F42: =SUM(F38:F76) -> 268079.2821 | G42: 268079.2821
B44: Depreciation Expenses | C44: ='F.P.YEAR 1'!S64 -> 60000 | D44: ='F.P.YEAR 2'!S65 -> 60000 | E44: ='F.P.YEAR 3'!S65 -> 60000 | F44: ='F.P.YEAR 4'!S65 -> 60000 | G44: ='F.P.YEAR 5'!S65 -> 60000
B45: Amortization & Interest Expense (Loan P&I) | C45: ='F.P.YEAR 1'!S65 -> 372014.88 | D45: ='F.P.YEAR 2'!S66 -> 372014.88 | E45: ='F.P.YEAR 3'!S66 -> 372014.88 | F45: ='F.P.YEAR 4'!S66 -> 372014.88 | G45: ='F.P.YEAR 5'!S66 -> 372014.88
B47: Sub Total Expenses | C47: =SUM(C16:C17,C20:C23,C26:C35,C38:C41,C44,C45,)*105% -> 4112328.287 | D47: =SUM(D16:D17,D20:D23,D26:D35,D38:D41,D44,D45,)*103% -> 4246586.452 | E47: =SUM(E16:E17,E20:E23,E26:E35,E38:E41,E44,E45,)*103% -> 4445980.953 | F47: =SUM(F16:F17,F20:F23,F26:F35,F38:F41,F44,F45,)*103% -> 4654934.009 | G47: 4878617.238
B48: Contingency | C48: =C47*10% -> 411232.8287 | D48: =D47*10% -> 424658.6452 | E48: =E47*10% -> 444598.0953 | F48: =F47*10% -> 465493.4009 | G48: 487861.7238
B49: Grand Total Expense | C49: =C47+C48 -> 4523561.116 | D49: =D47+D48 -> 4671245.098 | E49: =E47+E48 -> 4890579.048 | F49: =F47+F48 -> 5120427.41 | G49: 5366478.962
A51: Net Income | B51: Net Income | C51: =C14-C49 -> 499335.3131 | D51: =D14-D49 -> 2530833.474 | E51: =E14-E49 -> 2979155.952 | F51: =F14-F49 -> 3364929.662 | G51: 3926742.388
B52: Income Tax | C52: =-(C51*0.28) -> -139813.8877 | D52: =-(D51*0.28) -> -708633.3727 | E52: =-(E51*0.28) -> -834163.6665 | F52: =-(F51*0.28) -> -942180.3053 | G52: -1099487.869
B53: Final Net Income after Tax | C53: =C51+C52 -> 359521.4254 | D53: =D51+D52 -> 1822200.101 | E53: =E51+E52 -> 2144992.285 | F53: =F51+F52 -> 2422749.356 | G53: 2827254.519

Sheet F.P.YEAR 1
A1: Year 1 Profit & Loss | J1: Initial guests | K1: : From 1st to 5th month | M1: Peak : | O1: Nov.Dec.Jan.Feb & Jun | Q1: High Peak : | R1: Jul, Aug
B3: Business | G3: Jan. | H3: Feb | I3: Mar | J3: Apr | K3: May | L3: Jun | M3: Jul | N3: Aug | O3: Sep | P3: Oct | Q3: Nov | R3: Dec | S3: Year Total
E4: days | F4: for Month | G4: 31 | H4: 28 | I4: 31 | J4: 30 | K4: 31 | L4: 30 | M4: 31 | N4: 31 | O4: 30 | P4: 31 | Q4: 30 | R4: 31 | S4: =SUM(G4,H4,I4,J4,K4,L4,M4,N4,O4,P4,Q4,R4) -> 365
A5: Year 1 | B5: First Year | C5: rooms | D5: Price/unit | F5: Daily Vistors | G5: 100 | H5: 100 | I5: 110 | J5: 120 | K5: 100 | L5: 100 | M5: 150 | N5: 170 | O5: 150 | P5: 120 | Q5: 100 | R5: 100
D6: occpancy | E6: 0.65 | F6: Monthly visitors | G6: =G4*G5 -> 3100 | H6: 2800 | I6: 3410 | J6: 3600 | K6: 3100 | L6: 3000 | M6: 4650 | N6: 5270 | O6: 4500 | P6: 3720 | Q6: 3000 | R6: 3100 | S6: =SUM(G6,H6,I6,J6,K6,L6,M6,N6,O6,P6,Q6,R6) -> 43250
A7: Lodging | B7: Room w/attached outdoor Bath (Sulfur Soaking), weekday $250/2pax+weekend $350 / 2pax, Breakfast ,Admission fee included | C7: 0 | D7: =((250*4)+(350*3))/7 -> 292.8571429 | E7: =C7*$E$6 -> 0 | G7: =$D$7*$E$7*G4 -> 0 | H7: 0 | I7: 0 | J7: 0 | K7: 0 | L7: 0 | M7: 0 | N7: 0 | O7: 0 | P7: 0 | Q7: 0 | R7: 0 | S7: =SUM(G7:R7) -> 0
B8: Standard room, weekday $200/2pax+weekend $250 /2pax,Breakfast included | C8: 0 | D8: =((200*4)+(250*3))/7 -> 221.4285714 | E8: =C8*$E$6 -> 0 | G8: =$D$8*$E$8*G4 -> 0 | H8: 0 | I8: 0 | J8: 0 | K8: 0 | L8: 0 | M8: 0 | N8: 0 | O8: 0 | P8: 0 | Q8: 0 | R8: 0 | S8: =SUM(G8:R8) -> 0
A9: Doctor house 10 rooms | B9: Hotel, weekday/N $150/2pax+weekend/N, $200 /2pax,Breakfast. | C9: 10 | D9: =((150*4)+(200*3))/7 -> 171.4285714 | E9: =C9*$E$6 -> 6.5 | F9: monthly sales | G9: =$D$9*$E$9*G4 -> 34542.85714 | H9: =$D$9*$E$9*H4 -> 31200 | I9: 34542.85714 | J9: 33428.57143 | K9: 34542.85714 | L9: 33428.57143 | M9: 34542.85714 | N9: 34542.85714 | O9: 33428.57143 | P9: 34542.85714 | Q9: 33428.57143 | R9: 34542.85714 | S9: =SUM(G9:R9) -> 406714.2857
F10: Sales Sub TTL | G10: =G7+G8+G9 -> 34542.85714 | H10: =H7+H8+H9 -> 31200 | I10: 34542.85714 | J10: 33428.57143 | K10: 34542.85714 | L10: 33428.57143 | M10: 34542.85714 | N10: 34542.85714 | O10: 33428.57143 | P10: 34542.85714 | Q10: 33428.57143 | R10: 34542.85714 | S10: =SUM(G10:R10) -> 406714.2857
F11: Profit Rate | G11: 1 | H11: 1 | I11: 1 | J11: 1 | K11: 1 | L11: 1 | M11: 1 | N11: 1 | O11: 1 | P11: 1 | Q11: 1 | R11: 1 | S11: 1
F12: Profit | G12: =G10*G11 -> 34542.85714 | H12: 31200 | I12: 34542.85714 | J12: 33428.57143 | K12: 34542.85714 | L12: 33428.57143 | M12: =M10*M11 -> 34542.85714 | N12: 34542.85714 | O12: 33428.57143 | P12: 34542.85714 | Q12: 33428.57143 | R12: 34542.85714 | S12: 406714.2857
A13: Spa Service & Program | B13: Main Package[Admission w/ Public Outdoor bath+ indoor private Bath (Sulfur Soaking)+ 60 Min massage | C13: Ave. | D13: =((D15*4)+(D16*3))/7 -> 132.8571429 | E13: 0.5 | F13: Monthly Pax | G13: =G5*G4*$E$13 -> 1550 | H13: =H5*H4*$E$13 -> 1400 | I13: 1705 | J13: 1800 | K13: 1550 | L13: 1500 | M13: 2325 | N13: 2635 | O13: 2250 | P13: 1860 | Q13: 1500 | R13: 1550 | S13: =SUM(G13:R13) -> 21625
F14: Sales | G14: =$D$13*G13 -> 205928.5714 | H14: =$D$13*H13 -> 186000 | I14: 226521.4286 | J14: 239142.8571 | K14: 205928.5714 | L14: 199285.7143 | M14: 308892.8571 | N14: 350078.5714 | O14: 298928.5714 | P14: 247114.2857 | Q14: 199285.7143 | R14: 205928.5714 | S14: =SUM(G14:R14) -> 2873035.714
C15: week | D15: 120 | F15: Profit Rate | G15: 1 | H15: 1 | I15: 1 | J15: 1 | K15: 1 | L15: 1 | M15: 1 | N15: 1 | O15: 1 | P15: 1 | Q15: 1 | R15: 1 | S15: 1
C16: weekend | D16: 150 | F16: Profit | G16: =G14*G15 -> 205928.5714 | H16: 186000 | I16: 226521.4286 | J16: 239142.8571 | K16: 205928.5714 | L16: 199285.7143 | M16: =M14*M15 -> 308892.8571 | N16: =N14*N15 -> 350078.5714 | O16: 298928.5714 | P16: 247114.2857 | Q16: 199285.7143 | R16: 205928.5714 | S16: =S14*S15 -> 2873035.714
A21: Spa Service & Program | B21: Budget Package[ Addmission+public outdoorbath | D21: =((D23*4)+(D24*3))/7 -> 60.71428571 | E21: =1-E13 -> 0.5 | F21: Monthly Pax | G21: =G4*G5*$E$21 -> 1550 | H21: =H4*H5*$E$21 -> 1400 | I21: 1705 | J21: 1800 | K21: 1550 | L21: 1500 | M21: 2325 | N21: 2635 | O21: 2250 | P21: 1860 | Q21: 1500 | R21: 1550 | S21: =SUM(G21:R21) -> 21625
F22: Sales | G22: =$D$21*G21 -> 94107.14286 | H22: 85000 | I22: 103517.8571 | J22: 109285.7143 | K22: 94107.14286 | L22: 91071.42857 | M22: 141160.7143 | N22: 159982.1429 | O22: 136607.1429 | P22: 112928.5714 | Q22: 91071.42857 | R22: 94107.14286 | S22: =SUM(G22:R22) -> 1312946.429
C23: week | D23: 50 | F23: Profit Rate | G23: 1 | H23: 1 | I23: 1 | J23: 1 | K23: 1 | L23: 1 | M23: 1 | N23: 1 | O23: 1 | P23: 1 | Q23: 1 | R23: 1 | S23: 1
C24: weekend | D24: 75 | F24: Profit | G24: =G22*G23 -> 94107.14286 | H24: 85000 | I24: 103517.8571 | J24: 109285.7143 | K24: 94107.14286 | L24: 91071.42857 | M24: =M22*M23 -> 141160.7143 | N24: =N22*N23 -> 159982.1429 | O24: 136607.1429 | P24: 112928.5714 | Q24: 91071.42857 | R24: 94107.14286 | S24: =S22*S23 -> 1312946.429
A25: Spa Service & Program | B25: Nail/Foot | F25: Monthly Pax | G25: 0 | H25: 0 | I25: 0 | J25: 0 | K25: 0 | L25: 0 | M25: 0 | N25: 0 | O25: 0 | P25: 0 | Q25: 0 | R25: 0 | S25: =SUM(G25:R25) -> 0
F26: Sales | G26: =$D$25*G25 -> 0 | H26: 0 | I26: 0 | J26: 0 | K26: 0 | L26: 0 | M26: 0 | N26: 0 | O26: 0 | P26: 0 | Q26: 0 | R26: 0 | S26: =SUM(G26:R26) -> 0
F27: Profit Rate | G27: 0.95 | H27: 0.95 | I27: 0.95 | J27: 0.95 | K27: 0.95 | L27: 0.95 | M27: 0.95 | N27: 0.95 | O27: 0.95 | P27: 0.95 | Q27: 0.95 | R27: 0.95 | S27: 0.95
F28: Profit | G28: =G26*G27 -> 0 | H28: 0 | I28: 0 | J28: 0 | K28: 0 | L28: 0 | M28: =M26*M27 -> 0 | N28: =N26*N27 -> 0 | O28: 0 | P28: 0 | Q28: 0 | R28: 0 | S28: 0
A29: Food & Beverage | B29: Café | D29: 15 | E29: 0.6 | F29: Monthly Pax | G29: =G4*G5*$E$29 -> 1860 | H29: =H4*H5*$E$29 -> 1680 | I29: 2046 | J29: 2160 | K29: 1860 | L29: 1800 | M29: 2790 | N29: 3162 | O29: 2700 | P29: 2232 | Q29: 1800 | R29: 1860 | S29: =SUM(G29:R29) -> 25950
F30: Sales | G30: =$D$29*G29 -> 27900 | H30: 25200 | I30: 30690 | J30: 32400 | K30: 27900 | L30: 27000 | M30: 41850 | N30: 47430 | O30: 40500 | P30: 33480 | Q30: 27000 | R30: 27900 | S30: =SUM(G30:R30) -> 389250
F31: Profit Rate | G31: 0.8 | H31: 0.8 | I31: 0.8 | J31: 0.8 | K31: 0.8 | L31: 0.8 | M31: 0.8 | N31: 0.8 | O31: 0.8 | P31: 0.8 | Q31: 0.8 | R31: 0.8 | S31: 0.8
F32: Profit | G32: =G30*G31 -> 22320 | H32: 20160 | I32: 24552 | J32: 25920 | K32: 22320 | L32: 21600 | M32: =M30*M31 -> 33480 | N32: =N30*N31 -> 37944 | O32: 32400 | P32: 26784 | Q32: 21600 | R32: 22320 | S32: 311400
A33: Food & Beverage | B33: Restaurant rent income | D33: 9900 | F33: Monthly Pax | G33: 1 | H33: 1 | I33: 1 | J33: 1 | K33: 1 | L33: 1 | M33: 1 | N33: 1 | O33: 1 | P33: 1 | Q33: 1 | R33: 1 | S33: 12
F34: Sales | G34: 9900 | H34: 9900 | I34: 9900 | J34: 9900 | K34: 9900 | L34: 9900 | M34: 9900 | N34: 9900 | O34: 9900 | P34: 9900 | Q34: 9900 | R34: 9900 | S34: =9900*12 -> 118800
F35: Profit Rate | G35: 1 | H35: 1 | I35: 1 | J35: 1 | K35: 1 | L35: 1 | M35: 1 | N35: 1 | O35: 1 | P35: 1 | Q35: 1 | R35: 1 | S35: 1
F36: Profit | G36: =G34*G35 -> 9900 | H36: 9900 | I36: 9900 | J36: 9900 | K36: 9900 | L36: 9900 | M36: =M34*M35 -> 9900 | N36: =N34*N35 -> 9900 | O36: 9900 | P36: 9900 | Q36: 9900 | R36: 9900 | S36: 118800
B42: Total Sales Revenue | G42: =G10+G14+G18+G22+G26+G30+G34+G38 -> 372378.5714 | H42: =H10+H14+H30+H18+H22+H26+H34+H38 -> 337300 | I42: 405172.1429 | J42: 424157.1429 | K42: 372378.5714 | L42: 360685.7143 | M42: 536346.4286 | N42: 601933.5714 | O42: 519364.2857 | P42: 437965.7143 | Q42: 360685.7143 | R42: 372378.5714 | S42: =S10+S14+S30+S18+S22+S26+S34+S38 -> 5100746.429
B43: COGS | S43: =SUM(G42:R42) -> 5100746.429
A45: Cost of Good Sold | B45: Food &Beberage COGS | G45: =(G10*(1-G11))+(G14*(1-G15))+(G18*(1-G19))+(G22*(1-G23))+(G30*(1-G31))+(G34*(1-G35)) -> 5580 | H45: =(H10*(1-H11))+(H14*(1-H15))+(H18*(1-H19))+(H22*(1-H23))+(H30*(1-H31))+(H34*(1-H35)) -> 5040 | I45: 6138 | J45: 6480 | K45: 5580 | L45: 5400 | M45: 8370 | N45: 9486 | O45: 8100 | P45: 6696 | Q45: 5400 | R45: 5580 | S45: =(S10*(1-S11))+(S14*(1-S15))+(S18*(1-S19))+(S22*(1-S23))+(S30*(1-S31))+(S34*(1-S35)) -> 77850
B46: Gift supply COGS | G46: =G38*(1-G39) -> 0 | H46: =H38*(1-H39) -> 0 | I46: 0 | J46: 0 | K46: 0 | L46: 0 | M46: 0 | N46: 0 | O46: 0 | P46: 0 | Q46: 0 | R46: 0 | S46: 0
A48: Total Gross Profit | B48: Total Gross Profit | G48: =G42-G45-G46 -> 366798.5714 | H48: =H42-H45-H46 -> 332260 | I48: 399034.1429 | J48: 417677.1429 | K48: 366798.5714 | L48: 355285.7143 | M48: 527976.4286 | N48: 592447.5714 | O48: 511264.2857 | P48: 431269.7143 | Q48: 355285.7143 | R48: 366798.5714 | S48: 5022896.429
B49: Expense
A50: Credit Card Fee/Bank/Other/Misc. | B50: Credit Card Fee/Bank/Other/Misc. | G50: =G42*0.02 -> 7447.571429 | H50: =H42*0.02 -> 6746 | I50: 8103.442857 | J50: 8483.142857 | K50: 7447.571429 | L50: 7213.714286 | M50: 10726.92857 | N50: 12038.67143 | O50: 10387.28571 | P50: 8759.314286 | Q50: 7213.714286 | R50: 7447.571429 | S50: 102014.9286
A51: Property Tax - Under Pilot Program | B51: Property Tax - Under Pilot Program | G51: =48547/12 -> 4045.583333 | H51: =48547/12 -> 4045.583333 | I51: 4045.583333 | J51: 4045.583333 | K51: 4045.583333 | L51: 4045.583333 | M51: 4045.583333 | N51: 4045.583333 | O51: 4045.583333 | P51: 4045.583333 | Q51: 4045.583333 | R51: 4045.583333 | S51: =SUM(G51:R51) -> 48547
A52: Payroll | B52: Payroll | G52: ='payroll.tax Y1'!I37 -> 168950 | H52: =$G$52 -> 168950 | I52: =$G$52 -> 168950 | J52: 168950 | K52: 168950 | L52: 168950 | M52: 168950 | N52: 168950 | O52: 168950 | P52: 168950 | Q52: 168950 | R52: 168950 | S52: 2027400
A53: Payroll Tax | B53: Payroll Tax | G53: ='payroll.tax Y1'!L37 -> 12741.33333 | H53: =G53 -> 12741.33333 | I53: =H53 -> 12741.33333 | J53: 12741.33333 | K53: 12741.33333 | L53: 12741.33333 | M53: 12741.33333 | N53: 12741.33333 | O53: 12741.33333 | P53: 12741.33333 | Q53: 12741.33333 | R53: 12741.33333 | S53: 152896
A54: Sales Tax | B54: Sales Tax | G54: =G42*0.08 -> 29790.28571 | H54: =H42*0.08 -> 26984 | I54: =I42*0.08 -> 32413.77143 | J54: =J42*0.08 -> 33932.57143 | K54: 29790.28571 | L54: 28854.85714 | M54: 42907.71429 | N54: 48154.68571 | O54: 41549.14286 | P54: 35037.25714 | Q54: 28854.85714 | R54: 29790.28571 | S54: =SUM(G54:R54) -> 408059.7143
A55: Gas | B55: Gas | G55: =143.33*G4 -> 4443.23 | H55: =143.33*H4 -> 4013.24 | I55: 4443.23 | J55: 4299.9 | K55: 4443.23 | L55: 4299.9 | M55: 4443.23 | N55: 4443.23 | O55: 4299.9 | P55: 4443.23 | Q55: 4299.9 | R55: 4443.23 | S55: =SUM(G55:R55) -> 52315.45
A56: Electricity | B56: Electricity | G56: =15000*0.352564 -> 5288.46 | H56: =15000*0.352564 -> 5288.46 | I56: 5288.46 | J56: 5288.46 | K56: 5288.46 | L56: 5288.46 | M56: 5288.46 | N56: 5288.46 | O56: 5288.46 | P56: 5288.46 | Q56: 5288.46 | R56: 5288.46 | S56: =SUM(G56:R56) -> 63461.52
A57: Water & Sewer | B57: Water & Sewer | G57: =(($G$4*G5)*6.6043*0.0229)+($G$4*61.01) -> 2360.149257 | H57: =(($G$4*H5)*6.6043*0.0229)+($G$4*61.01) -> 2360.149257 | I57: 2407.033183 | J57: 2453.917108 | K57: 2360.149257 | L57: 2360.149257 | M57: 2594.568885 | N57: 2688.336737 | O57: 2594.568885 | P57: 2453.917108 | Q57: 2360.149257 | R57: 2360.149257 | S57: =SUM(G57:R57) -> 29353.23745
A58: Phone,Internet,Cable | B58: Phone,Internet,Cable | G58: 1500 | H58: 1500 | I58: 1500 | J58: 1500 | K58: 1500 | L58: 1500 | M58: 1500 | N58: 1500 | O58: 1500 | P58: 1500 | Q58: 1500 | R58: 1500 | S58: =SUM(G58:R58) -> 18000
A59: Laundry & Sanitation | B59: Laundry & Sanitation | G59: =($G$4*G5*1.4*0.37)+(71.42*$G$4) -> 3819.82 | H59: =(H4*H5*1.4*0.37)+(71.42*H4) -> 3450.16 | I59: 3980.4 | J59: 4007.4 | K59: 3819.82 | L59: 3696.6 | M59: 4622.72 | N59: 4943.88 | O59: 4473.6 | P59: 4140.98 | Q59: 3696.6 | R59: 3819.82 | S59: 48471.8
A60: Bath house Supplies | B60: Bath house Supplies | G60: =G4*G5*0.5 -> 1550 | H60: =H4*H5*0.5 -> 1400 | I60: 1705 | J60: 1800 | K60: 1550 | L60: 1500 | M60: 2325 | N60: 2635 | O60: 2250 | P60: 1860 | Q60: 1500 | R60: 1550 | S60: 21625
A62: Advertising(Media/ SN/Internet) | B62: Advertising(Media/ SN/Internet) | G62: 25000 | H62: =G62 -> 25000 | I62: =H62 -> 25000 | J62: 25000 | K62: 25000 | L62: 25000 | M62: 25000 | N62: 25000 | O62: 25000 | P62: 25000 | Q62: 25000 | R62: 25000 | S62: 300000
A63: Litigation,Insurance&Workers Comp | B63: Litigation,Insurance&Workers Comp | G63: 7904 | H63: 7904 | I63: 7904 | J63: 7904 | K63: 7904 | L63: 7904 | M63: 7904 | N63: 7904 | O63: 7904 | P63: 7904 | Q63: 7904 | R63: 7904 | S63: 94848
A64: Depreciation for properties | B64: Depreciation for properties | G64: 5000 | H64: 5000 | I64: 5000 | J64: 5000 | K64: 5000 | L64: 5000 | M64: 5000 | N64: 5000 | O64: 5000 | P64: 5000 | Q64: 5000 | R64: 5000 | S64: 60000
A65: Loan Principal&Interests | B65: Loan Principal&Interests | G65: 31001.24 | H65: 31001.24 | I65: 31001.24 | J65: 31001.24 | K65: 31001.24 | L65: 31001.24 | M65: 31001.24 | N65: 31001.24 | O65: 31001.24 | P65: 31001.24 | Q65: 31001.24 | R65: 31001.24 | S65: 372014.88
A66: Professional Fee | B66: Professional Fee | G66: 4000 | H66: 4000 | I66: 4000 | J66: 4000 | K66: 4000 | L66: 4000 | M66: 4000 | N66: 4000 | O66: 4000 | P66: 4000 | Q66: 4000 | R66: 4000 | S66: 48000
A67: Pest Control | B67: Pest Control | G67: 2083 | H67: 2083 | I67: 2083 | J67: 2083 | K67: 2083 | L67: 2083 | M67: 2083 | N67: 2083 | O67: 2083 | P67: 2083 | Q67: 2083 | R67: 2083 | S67: =SUM(G67:R67) -> 24996
A68: Licenses and permits | B68: Licenses and permits | G68: 833 | H68: 833 | I68: 833 | J68: 833 | K68: 833 | L68: 833 | M68: 833 | N68: 833 | O68: 833 | P68: 833 | Q68: 833 | R68: 833 | S68: 9996
A69: Postage and delivery | B69: Postage and delivery | G69: 667 | H69: 667 | I69: 667 | J69: 667 | K69: 667 | L69: 667 | M69: 667 | N69: 667 | O69: 667 | P69: 667 | Q69: 667 | R69: 667 | S69: 8004
A70: Printing (brouchure,sign) | B70: Printing (brouchure,sign) | G70: 2000 | H70: 2000 | I70: 2000 | J70: 2000 | K70: 2000 | L70: 2000 | M70: 2000 | N70: 2000 | O70: 2000 | P70: 2000 | Q70: 2000 | R70: 2000 | S70: 24000
A71: Shuttle service(2 buses) | B71: Bus insurance | G71: 8400 | H71: 8400 | I71: 8400 | J71: 8400 | K71: 8400 | L71: 8400 | M71: 8400 | N71: 8400 | O71: 8400 | P71: 8400 | Q71: 8400 | R71: 8400 | S71: 100800
A72: Shuttle service(2 buses) | B72: Bus maintenance | G72: 11700 | H72: 11700 | I72: 11700 | J72: 11700 | K72: 11700 | L72: 11700 | M72: 11700 | N72: 11700 | O72: 11700 | P72: 11700 | Q72: 11700 | R72: 11700 | S72: 140400
A73: Shuttle service(2 buses) | B73: Bus finance | G73: 21183.28 | H73: 21430 | I73: 21430 | J73: 21430 | K73: 21430 | L73: 21430 | M73: 21430 | N73: 21430 | O73: 21430 | P73: 21430 | Q73: 21430 | R73: 21430 | S73: 256913.28
A74: Dues & Subscription | B74: Dues & Subscription | G74: 208.3 | H74: 208.3 | I74: 208.3 | J74: 208.3 | K74: 208.3 | L74: 208.3 | M74: 208.3 | N74: 208.3 | O74: 208.3 | P74: 208.3 | Q74: 208.3 | R74: 208.3 | S74: 2499.6
A75: Sub-Total Expense | B75: Sub-Total Expense | G75: =SUM(G50:G74) -> 361916.2531 | H75: =SUM(H50:H74) -> 357705.4659 | I75: 365804.7941 | J75: 367728.8481 | K75: 362162.9731 | L75: 360677.1374 | M75: 380372.0784 | N75: 387655.7205 | O75: 378306.4141 | P75: 369446.6152 | Q75: 360677.1374 | R75: 362162.9731 | S75: 4414616.41
A76: Contingency | B76: Contingency | G76: =G75*0.03 -> 10857.48759 | H76: =H75*0.03 -> 10731.16398 | I76: 10974.14382 | J76: 11031.86544 | K76: 10864.88919 | L76: 10820.31412 | M76: 11411.16235 | N76: 11629.67162 | O76: 11349.19242 | P76: 11083.39846 | Q76: 10820.31412 | R76: 10864.88919 | S76: =SUM(G76:R76) -> 132438.4923
A77: Total Expense | B77: Total Expense | G77: =G75+G76 -> 372773.7407 | H77: =H75+H76 -> 368436.6299 | I77: 376778.938 | J77: 378760.7135 | K77: 373027.8623 | L77: 371497.4515 | M77: 391783.2408 | N77: 399285.3922 | O77: 389655.6065 | P77: 380530.0137 | Q77: 371497.4515 | R77: 373027.8623 | S77: =SUM(G77:R77) -> 4547054.903
A79: Total Final Net Profit | B79: Total Final Net Profit | G79: =G48-G77 -> -5975.16923 | H79: =H48-H77 -> -36176.6299 | I79: 22255.2049 | J79: 38916.42935 | K79: -6229.29083 | L79: -16211.73719 | M79: 136193.1878 | N79: 193162.1793 | O79: 121608.6792 | P79: 50739.70063 | Q79: -16211.73719 | R79: -6229.29083 | S79: 475841.526
E81: Profit | F81: total by month | G81: =G79 -> -5975.16923 | H81: =SUM($G$79:H79) -> -42151.79913 | I81: =SUM($G$79:I79) -> -19896.59423 | J81: =SUM($G$79:J79) -> 19019.83512 | K81: =SUM($G$79:K79) -> 12790.54429 | L81: =SUM($G$79:L79) -> -3421.192896 | M81: =SUM($G$79:M79) -> 132771.9949 | N81: =SUM($G$79:N79) -> 325934.1742 | O81: =SUM($G$79:O79) -> 447542.8533 | P81: =SUM($G$79:P79) -> 498282.554 | Q81: =SUM($G$79:Q79) -> 482070.8168 | R81: =SUM($G$79:R79) -> 475841.526
E82: (accmulated from the 1st month)

Sheet F.P.YEAR 2
A1: Year 2 Profit & Loss | J1: Peak : | L1: Nov.Dec.Jan.Feb & Jun | O1: High Peak : | P1: Jul, Aug
B3: Business | G3: Jan. | H3: Feb | I3: Mar | J3: Apr | K3: May | L3: Jun | M3: Jul | N3: Aug | O3: Sep | P3: Oct | Q3: Nov | R3: Dec | S3: Year Total
E4: days | F4: for Month | G4: 31 | H4: 28 | I4: 31 | J4: 30 | K4: 31 | L4: 30 | M4: 31 | N4: 31 | O4: 30 | P4: 31 | Q4: 30 | R4: 31 | S4: =SUM(G4,H4,I4,J4,K4,L4,M4,N4,O4,P4,Q4,R4) -> 365
B5: 1st yr | E5: Daily | F5: Vistors | G5: ='F.P.YEAR 1'!G5 -> 100 | H5: ='F.P.YEAR 1'!H5 -> 100 | I5: ='F.P.YEAR 1'!I5 -> 110 | J5: ='F.P.YEAR 1'!J5 -> 120 | K5: ='F.P.YEAR 1'!K5 -> 100 | L5: ='F.P.YEAR 1'!L5 -> 100 | M5: ='F.P.YEAR 1'!M5 -> 150 | N5: ='F.P.YEAR 1'!N5 -> 170 | O5: ='F.P.YEAR 1'!O5 -> 150 | P5: ='F.P.YEAR 1'!P5 -> 120 | Q5: ='F.P.YEAR 1'!Q5 -> 100 | R5: ='F.P.YEAR 1'!R5 -> 100 | S5: ='F.P.YEAR 1'!S6 -> 43250
A6: Year 2 | B6: 2nd Yr | C6: rooms | D6: Price/unit | F6: (+50%) | G6: =G5*1.5 -> 150 | H6: =H5*1.5 -> 150 | I6: 165 | J6: 180 | K6: 150 | L6: 150 | M6: 225 | N6: 255 | O6: 225 | P6: 180 | Q6: 150 | R6: 150
D7: occpancy | E7: 0.65 | F7: Momthly | G7: =G4*G6 -> 4650 | H7: =H4*H6 -> 4200 | I7: 5115 | J7: 5400 | K7: 4650 | L7: 4500 | M7: 6975 | N7: 7905 | O7: 6750 | P7: 5580 | Q7: 4500 | R7: 4650 | S7: =SUM(G7:R7) -> 64875
A8: Lodging | B8: Room w/attached outdoor Bath (Sulfur Soaking), weekday $250/2pax+weekend $350 / 2pax, Breakfast ,Admission fee included | C8: 0 | D8: =((250*4)+(350*3))/7 -> 292.8571429 | E8: =C8*$E$6 -> 0 | F8: monthly sales | G8: =$D$8*$E$8*G4 -> 0 | H8: =$D$8*$E$8*H4 -> 0 | I8: 0 | J8: 0 | K8: 0 | L8: 0 | M8: 0 | N8: 0 | O8: 0 | P8: 0 | Q8: 0 | R8: 0 | S8: =SUM(G8:R8) -> 0
B9: Standard room, weekday $200/2pax+weekend $250 /2pax,Breakfast included | C9: 0 | D9: =((200*4)+(250*3))/7 -> 221.4285714 | E9: =C9*$E$6 -> 0 | F9: monthly sales | G9: =$D$9*$E$9*G4 -> 0 | H9: =$D$9*$E$9*H4 -> 0 | I9: 0 | J9: 0 | K9: 0 | L9: 0 | M9: 0 | N9: 0 | O9: 0 | P9: 0 | Q9: 0 | R9: 0 | S9: =SUM(G9:R9) -> 0
A10: Guest House | B10: Hotel, weekday/N $150/2pax+weekend/N, $200 /2pax,Breakfast. | C10: 10 | D10: =((150*4)+(200*3))/7 -> 171.4285714 | E10: =C10*$E$7 -> 6.5 | F10: monthly sales | G10: =$D$10*$E$10*G4 -> 34542.85714 | H10: =$D$10*$E$10*H4 -> 31200 | I10: 34542.85714 | J10: 33428.57143 | K10: 34542.85714 | L10: 33428.57143 | M10: 34542.85714 | N10: 34542.85714 | O10: 33428.57143 | P10: 34542.85714 | Q10: 33428.57143 | R10: 34542.85714 | S10: =SUM(G10:R10) -> 406714.2857
F11: Sales Sub TTL | G11: =G8+G9+G10 -> 34542.85714 | H11: =H8+H9+H10 -> 31200 | I11: 34542.85714 | J11: 33428.57143 | K11: 34542.85714 | L11: 33428.57143 | M11: 34542.85714 | N11: 34542.85714 | O11: 33428.57143 | P11: 34542.85714 | Q11: 33428.57143 | R11: 34542.85714 | S11: =SUM(G11:R11) -> 406714.2857
F12: Profit Rate | G12: 1 | H12: 1 | I12: 1 | J12: 1 | K12: 1 | L12: 1 | M12: 1 | N12: 1 | O12: 1 | P12: 1 | Q12: 1 | R12: 1 | S12: 1
F13: Profit | G13: =G11 -> 34542.85714 | H13: =H11 -> 31200 | I13: 34542.85714 | J13: 33428.57143 | K13: 34542.85714 | L13: 33428.57143 | M13: 34542.85714 | N13: 34542.85714 | O13: 33428.57143 | P13: 34542.85714 | Q13: 33428.57143 | R13: 34542.85714 | S13: =SUM(G13:R13) -> 406714.2857
A14: Spa Service & Program | B14: Main Package[Admission w/ Public Outdoor bath+ indoor private Bath (Sulfur Soaking)+ 60 Min massage | C14: Ave. | D14: =((D16*4)+(D17*3))/7 -> 132.8571429 | E14: 0.5 | F14: Monthly Pax | G14: =G6*G4*$E$14 -> 2325 | H14: =H6*H4*$E$14 -> 2100 | I14: 2557.5 | J14: 2700 | K14: 2325 | L14: 2250 | M14: 3487.5 | N14: 3952.5 | O14: 3375 | P14: 2790 | Q14: 2250 | R14: 2325 | S14: =SUM(G14:R14) -> 32437.5
F15: Sales | G15: =$D$14*G14 -> 308892.8571 | H15: =$D$14*H14 -> 279000 | I15: 339782.1429 | J15: 358714.2857 | K15: 308892.8571 | L15: 298928.5714 | M15: 463339.2857 | N15: 525117.8571 | O15: 448392.8571 | P15: 370671.4286 | Q15: 298928.5714 | R15: 308892.8571 | S15: =SUM(G15:R15) -> 4309553.571
C16: week | D16: 120 | F16: Profit Rate | G16: 1 | H16: 1 | I16: 1 | J16: 1 | K16: 1 | L16: 1 | M16: 1 | N16: 1 | O16: 1 | P16: 1 | Q16: 1 | R16: 1 | S16: 1
C17: weekend | D17: 150 | F17: Profit | G17: =G15*G16 -> 308892.8571 | H17: 279000 | I17: 339782.1429 | J17: 358714.2857 | K17: 308892.8571 | L17: 298928.5714 | M17: =M15*M16 -> 463339.2857 | N17: =N15*N16 -> 525117.8571 | O17: 448392.8571 | P17: 370671.4286 | Q17: 298928.5714 | R17: 308892.8571 | S17: 4309553.571
A22: Spa Service & Program | B22: Budget Package[ Addmission+public outdoorbath | D22: =((D24*4)+(D25*3))/7 -> 58.57142857 | E22: =1-E14 -> 0.5 | F22: Monthly Pax | G22: =G4*G6*$E$22 -> 2325 | H22: 2100 | I22: 2557.5 | J22: 2700 | K22: 2325 | L22: 2250 | M22: 3487.5 | N22: 3952.5 | O22: 3375 | P22: 2790 | Q22: 2250 | R22: 2325 | S22: =SUM(G22:R22) -> 32437.5
F23: Sales | G23: =$D$22*G22 -> 136178.5714 | H23: 123000 | I23: 149796.4286 | J23: 158142.8571 | K23: 136178.5714 | L23: 131785.7143 | M23: 204267.8571 | N23: 231503.5714 | O23: 197678.5714 | P23: 163414.2857 | Q23: 131785.7143 | R23: 136178.5714 | S23: =SUM(G23:R23) -> 1899910.714
C24: week | D24: 50 | F24: Profit Rate | G24: 1 | H24: 1 | I24: 1 | J24: 1 | K24: 1 | L24: 1 | M24: 1 | N24: 1 | O24: 1 | P24: 1 | Q24: 1 | R24: 1 | S24: 1
C25: weekend | D25: 70 | F25: Profit | G25: =G23*G24 -> 136178.5714 | H25: 123000 | I25: 149796.4286 | J25: 158142.8571 | K25: 136178.5714 | L25: 131785.7143 | M25: =M23*M24 -> 204267.8571 | N25: =N23*N24 -> 231503.5714 | O25: 197678.5714 | P25: 163414.2857 | Q25: 131785.7143 | R25: 136178.5714 | S25: 1899910.714
A26: Spa Service & Program | B26: Nail/Foot | F26: Monthly Pax | G26: 0 | H26: 0 | I26: 0 | J26: 0 | K26: 0 | L26: 0 | M26: 0 | N26: 0 | O26: 0 | P26: 0 | Q26: 0 | R26: 0 | S26: =SUM(G26:R26) -> 0
F27: Sales | G27: =$D$26*G26 -> 0 | H27: 0 | I27: 0 | J27: 0 | K27: 0 | L27: 0 | M27: 0 | N27: 0 | O27: 0 | P27: 0 | Q27: 0 | R27: 0 | S27: =SUM(G27:R27) -> 0
F28: Profit Rate | G28: 0.95 | H28: 0.95 | I28: 0.95 | J28: 0.95 | K28: 0.95 | L28: 0.95 | M28: 0.95 | N28: 0.95 | O28: 0.95 | P28: 0.95 | Q28: 0.95 | R28: 0.95 | S28: 0.95
F29: Profit | G29: =G27*G28 -> 0 | H29: 0 | I29: 0 | J29: 0 | K29: 0 | L29: 0 | M29: =M27*M28 -> 0 | N29: =N27*N28 -> 0 | O29: 0 | P29: 0 | Q29: 0 | R29: 0 | S29: 0
A30: Food & Beverage | B30: Café | D30: 15 | E30: 0.6 | F30: Monthly Pax | G30: =G4*G6*$E$30 -> 2790 | H30: 2520 | I30: 3069 | J30: 3240 | K30: 2790 | L30: 2700 | M30: 4185 | N30: 4743 | O30: 4050 | P30: 3348 | Q30: 2700 | R30: 2790 | S30: =SUM(G30:R30) -> 38925
F31: Sales | G31: =$D$30*G30 -> 41850 | H31: 37800 | I31: 46035 | J31: 48600 | K31: 41850 | L31: 40500 | M31: 62775 | N31: 71145 | O31: 60750 | P31: 50220 | Q31: 40500 | R31: 41850 | S31: =SUM(G31:R31) -> 583875
F32: Profit Rate | G32: 0.8 | H32: 0.8 | I32: 0.8 | J32: 0.8 | K32: 0.8 | L32: 0.8 | M32: 0.8 | N32: 0.8 | O32: 0.8 | P32: 0.8 | Q32: 0.8 | R32: 0.8 | S32: 0.8
F33: Profit | G33: =G31*G32 -> 33480 | H33: 30240 | I33: 36828 | J33: 38880 | K33: 33480 | L33: 32400 | M33: =M31*M32 -> 50220 | N33: =N31*N32 -> 56916 | O33: 48600 | P33: 40176 | Q33: 32400 | R33: 33480 | S33: 467100
A34: Food & Beverage | B34: Restaurant rent income | D34: 9900 | F34: Monthly Pax | G34: 1 | H34: 1 | I34: 1 | J34: 1 | K34: 1 | L34: 1 | M34: 1 | N34: 1 | O34: 1 | P34: 1 | Q34: 1 | R34: 1 | S34: 12
F35: Sales | G35: 9900 | H35: 9900 | I35: 9900 | J35: 9900 | K35: 9900 | L35: 9900 | M35: 9900 | N35: 9900 | O35: 9900 | P35: 9900 | Q35: 9900 | R35: 9900 | S35: =9900*12 -> 118800
F36: Profit Rate | G36: 1 | H36: 1 | I36: 1 | J36: 1 | K36: 1 | L36: 1 | M36: 1 | N36: 1 | O36: 1 | P36: 1 | Q36: 1 | R36: 1 | S36: 1
F37: Profit | G37: =G35*G36 -> 9900 | H37: 9900 | I37: 9900 | J37: 9900 | K37: 9900 | L37: 9900 | M37: =M35*M36 -> 9900 | N37: =N35*N36 -> 9900 | O37: 9900 | P37: 9900 | Q37: 9900 | R37: 9900 | S37: 118800
B43: Total Sales Revenue | G43: =G11+G15+G19+G23+G27+G31+G35+G39 -> 531364.2857 | H43: =H11+H15+H19+H23+H27+H31+H35+H39 -> 480900 | I43: 580056.4286 | J43: 608785.7143 | K43: 531364.2857 | L43: 514542.8571 | M43: 774825 | N43: 872209.2857 | O43: 750150 | P43: 628748.5714 | Q43: 514542.8571 | R43: 531364.2857 | S43: =SUM(G43:R43) -> 7318853.571
S44: =SUM(G43:R43) -> 7318853.571
B45: COGS
A46: Cost of Good Sold | B46: Food &Beberage COGS | G46: =(G11*(1-G12))+(G15*(1-G16))+(G19*(1-G20))+(G23*(1-G24))+(G31*(1-G32))+(G35*(1-G36)) -> 8370 | H46: =(H11*(1-H12))+(H15*(1-H16))+(H19*(1-H20))+(H23*(1-H24))+(H31*(1-H32))+(H35*(1-H36)) -> 7560 | I46: 9207 | J46: 9720 | K46: 8370 | L46: 8100 | M46: 12555 | N46: 14229 | O46: 12150 | P46: 10044 | Q46: 8100 | R46: 8370 | S46: =SUM(G46:R46) -> 116775
B47: Gift supply COGS | G47: =G39*(1-G40) -> 0 | H47: =H39*(1-H40) -> 0 | I47: 0 | J47: 0 | K47: 0 | L47: 0 | M47: 0 | N47: 0 | O47: 0 | P47: 0 | Q47: 0 | R47: 0 | S47: =SUM(G47:R47) -> 0
A49: Total Gross Profit | B49: Total Gross Profit | G49: =G43-G46-G47 -> 522994.2857 | H49: =H43-H46-H47 -> 473340 | I49: 570849.4286 | J49: 599065.7143 | K49: 522994.2857 | L49: 506442.8571 | M49: 762270 | N49: 857980.2857 | O49: 738000 | P49: 618704.5714 | Q49: 506442.8571 | R49: 522994.2857 | S49: 7202078.571
B50: Expense
A51: Credit Card Fee/Bank/Other/Misc. | B51: Credit Card Fee/Bank/Other/Misc. | G51: =G43*0.02 -> 10627.28571 | H51: 9618 | I51: 11601.12857 | J51: 12175.71429 | K51: 10627.28571 | L51: 10290.85714 | M51: 15496.5 | N51: 17444.18571 | O51: 15003 | P51: 12574.97143 | Q51: 10290.85714 | R51: 10627.28571 | S51: 146377.0714
A52: Property Tax - Under Pilot Program | B52: Property Tax - Under Pilot Program | G52: =60684/12 -> 5057 | H52: =60684/12 -> 5057 | I52: 5057 | J52: 5057 | K52: 5057 | L52: 5057 | M52: 5057 | N52: 5057 | O52: 5057 | P52: 5057 | Q52: 5057 | R52: 5057 | S52: =SUM(G52:R52) -> 60684
A53: Payroll | B53: Payroll | G53: ='payroll.tax Y2'!J37 -> 177397.5 | H53: =$G$53 -> 177397.5 | I53: =$G$53 -> 177397.5 | J53: 177397.5 | K53: 177397.5 | L53: 177397.5 | M53: 177397.5 | N53: 177397.5 | O53: 177397.5 | P53: 177397.5 | Q53: 177397.5 | R53: 177397.5 | S53: 2128770
A54: Payroll Tax | B54: Payroll Tax | G54: ='payroll.tax Y2'!M37 -> 12794.44875 | H54: =G54 -> 12794.44875 | I54: =H54 -> 12794.44875 | J54: 12794.44875 | K54: 12794.44875 | L54: 12794.44875 | M54: 12794.44875 | N54: 12794.44875 | O54: 12794.44875 | P54: 12794.44875 | Q54: 12794.44875 | R54: 12794.44875 | S54: 153533.385
A55: Sales Tax | B55: Sales Tax | G55: =G43*0.08 -> 42509.14286 | H55: 38472 | I55: 46404.51429 | J55: 48702.85714 | K55: 42509.14286 | L55: 41163.42857 | M55: 61986 | N55: 69776.74286 | O55: 60012 | P55: 50299.88571 | Q55: 41163.42857 | R55: 42509.14286 | S55: =SUM(G55:R55) -> 585508.2857
A56: Gas | B56: Gas | G56: =143.33*G4 -> 4443.23 | H56: =143.33*H4 -> 4013.24 | I56: 4443.23 | J56: 4299.9 | K56: 4443.23 | L56: 4299.9 | M56: 4443.23 | N56: 4443.23 | O56: 4299.9 | P56: 4443.23 | Q56: 4299.9 | R56: 4443.23 | S56: 52315.45
A57: Electricity | B57: Electricity | G57: =15000*0.352564 -> 5288.46 | H57: =15000*0.352564 -> 5288.46 | I57: 5288.46 | J57: 5288.46 | K57: 5288.46 | L57: 5288.46 | M57: 5288.46 | N57: 5288.46 | O57: 5288.46 | P57: 5288.46 | Q57: 5288.46 | R57: 5288.46 | S57: 63461.52
A58: Water & Sewer | B58: Water & Sewer | G58: =(($G$4*G6)*6.6043*0.0229)+($G$4*61.01) -> 2594.568885 | H58: 2594.568885 | I58: 2664.894774 | J58: 2735.220663 | K58: 2594.568885 | L58: 2594.568885 | M58: 2946.198328 | N58: 3086.850105 | O58: 2946.198328 | P58: 2735.220663 | Q58: 2594.568885 | R58: 2594.568885 | S58: 32681.99617
A59: Phone,Internet,Cable | B59: Phone,Internet,Cable | G59: 1500 | H59: 1500 | I59: 1500 | J59: 1500 | K59: 1500 | L59: 1500 | M59: 1500 | N59: 1500 | O59: 1500 | P59: 1500 | Q59: 1500 | R59: 1500 | S59: 18000
A60: Laundry & Sanitation | B60: Laundry & Sanitation | G60: =($G$4*G6*1.4*0.37)+(71.42*$G$4) -> 4622.72 | H60: =($G$4*H6*1.4*0.37)+(71.42*$G$4) -> 4622.72 | I60: 4863.59 | J60: 5104.46 | K60: 4622.72 | L60: 4622.72 | M60: 5827.07 | N60: 6308.81 | O60: 5827.07 | P60: 5104.46 | Q60: 4622.72 | R60: 4622.72 | S60: 60771.78
A61: Bath house Supplies | B61: Bath house Supplies | G61: =G4*G6*0.5 -> 2325 | H61: 2100 | I61: 2557.5 | J61: 2700 | K61: 2325 | L61: 2250 | M61: 3487.5 | N61: 3952.5 | O61: 3375 | P61: 2790 | Q61: 2250 | R61: 2325 | S61: 32437.5
A63: Advertising(Media/ SN/Internet) | B63: Advertising(Media/ SN/Internet) | G63: 12000 | H63: =G63 -> 12000 | I63: =H63 -> 12000 | J63: 12000 | K63: 12000 | L63: 12000 | M63: 12000 | N63: 12000 | O63: 12000 | P63: 12000 | Q63: 12000 | R63: 12000 | S63: 144000
A64: Litigation,Insurance&Workers Comp | B64: Litigation,Insurance&Workers Comp | G64: 7904 | H64: 7904 | I64: 7904 | J64: 7904 | K64: 7904 | L64: 7904 | M64: 7904 | N64: 7904 | O64: 7904 | P64: 7904 | Q64: 7904 | R64: 7904 | S64: 94848
A65: Depreciation for properties | B65: Depreciation | G65: 5000 | H65: 5000 | I65: 5000 | J65: 5000 | K65: 5000 | L65: 5000 | M65: 5000 | N65: 5000 | O65: 5000 | P65: 5000 | Q65: 5000 | R65: 5000 | S65: 60000
A66: Loan Principal&Interests | B66: Loan Principal&Interests | G66: 31001.24 | H66: 31001.24 | I66: 31001.24 | J66: 31001.24 | K66: 31001.24 | L66: 31001.24 | M66: 31001.24 | N66: 31001.24 | O66: 31001.24 | P66: 31001.24 | Q66: 31001.24 | R66: 31001.24 | S66: 372014.88
A67: Professional Fee | B67: Professional Fee | G67: 4000 | H67: 4000 | I67: 4000 | J67: 4000 | K67: 4000 | L67: 4000 | M67: 4000 | N67: 4000 | O67: 4000 | P67: 4000 | Q67: 4000 | R67: 4000 | S67: 48000
A68: Pest Control | B68: Pest Control | G68: 2083 | H68: 2083 | I68: 2083 | J68: 2083 | K68: 2083 | L68: 2083 | M68: 2083 | N68: 2083 | O68: 2083 | P68: 2083 | Q68: 2083 | R68: 2083 | S68: =SUM(G68:R68) -> 24996
A69: Licenses and permits | B69: Licenses and permits | G69: 833 | H69: 833 | I69: 833 | J69: 833 | K69: 833 | L69: 833 | M69: 833 | N69: 833 | O69: 833 | P69: 833 | Q69: 833 | R69: 833 | S69: 9996
A70: Postage and delivery | B70: Postage and delivery | G70: 667 | H70: 667 | I70: 667 | J70: 667 | K70: 667 | L70: 667 | M70: 667 | N70: 667 | O70: 667 | P70: 667 | Q70: 667 | R70: 667 | S70: 8004
A71: Printing (brouchure,sign) | B71: Printing (brouchure,sign) | G71: 2000 | H71: 2000 | I71: 2000 | J71: 2000 | K71: 2000 | L71: 2000 | M71: 2000 | N71: 2000 | O71: 2000 | P71: 2000 | Q71: 2000 | R71: 2000 | S71: 24000
A72: Shuttle service(2 buses) | B72: Bus insurance | G72: 8400 | H72: 8400 | I72: 8400 | J72: 8400 | K72: 8400 | L72: 8400 | M72: 8400 | N72: 8400 | O72: 8400 | P72: 8400 | Q72: 8400 | R72: 8400 | S72: 100800
A73: Shuttle service(2 buses) | B73: Bus maintenance | G73: 11700 | H73: 11700 | I73: 11700 | J73: 11700 | K73: 11700 | L73: 11700 | M73: 11700 | N73: 11700 | O73: 11700 | P73: 11700 | Q73: 11700 | R73: 11700 | S73: 140400
A74: Shuttle service(2 buses) | B74: Bus finance | G74: 21183.28 | H74: 21430 | I74: 21430 | J74: 21430 | K74: 21430 | L74: 21430 | M74: 21430 | N74: 21430 | O74: 21430 | P74: 21430 | Q74: 21430 | R74: 21430 | S74: 256913.28
A75: Dues & Subscription | B75: Dues & Subscription | G75: 208.3 | H75: 208.3 | I75: 208.3 | J75: 208.3 | K75: 208.3 | L75: 208.3 | M75: 208.3 | N75: 208.3 | O75: 208.3 | P75: 208.3 | Q75: 208.3 | R75: 208.3 | S75: 2499.6
A76: Sub-Total Expense | B76: Sub-Total Expense | G76: =SUM(G51:G75) -> 376139.1762 | H76: =SUM(H51:H75) -> 370684.4776 | I76: 381798.8064 | J76: 384982.1008 | K76: 376385.8962 | L76: 374485.4233 | M76: 403450.4471 | N76: 414276.2674 | O76: 400727.1171 | P76: 387211.7166 | Q76: 374485.4233 | R76: 376385.8962 | S76: 4621012.748
A77: Contingency | B77: Contingency | G77: =G76*0.03 -> 11284.17529 | H77: =H76*0.03 -> 11120.53433 | I77: 11453.96419 | J77: 11549.46303 | K77: 11291.57689 | L77: 11234.5627 | M77: 12103.51341 | N77: 12428.28802 | O77: 12021.81351 | P77: 11616.3515 | Q77: 11234.5627 | R77: 11291.57689 | S77: =SUM(G77:R77) -> 138630.3824
A78: Total Expense | B78: Total Expense | G78: =G76+G77 -> 387423.3515 | H78: =H76+H77 -> 381805.012 | I78: 393252.7706 | J78: 396531.5639 | K78: 387677.4731 | L78: 385719.9861 | M78: 415553.9605 | N78: 426704.5554 | O78: 412748.9306 | P78: 398828.0681 | Q78: 385719.9861 | R78: 387677.4731 | S78: =SUM(G78:R78) -> 4759643.131
A80: Total Final Net Profit | B80: Total Final Profit | G80: =G49-G78 -> 135570.9342 | H80: =H49-H78 -> 91534.98804 | I80: 177596.658 | J80: 202534.1504 | K80: 135316.8126 | L80: 120722.8711 | M80: 346716.0395 | N80: 431275.7303 | O80: 325251.0694 | P80: 219876.5034 | Q80: 120722.8711 | R80: 135316.8126 | S80: 2442435.441
S81: =S80/S83 -> 5.132875774
R82: Growth | S82: =(S80/S83)-1 -> 4.132875774
R83: 1st Y | S83: ='F.P.YEAR 1'!S79 -> 475841.526

Sheet F.P.YEAR 3
A1: Year 3 Profit & Loss | J1: Peak : | L1: Dec.Jan.Feb & Jun | O1: High Peak : | P1: Jul, Aug
B3: Business | G3: Jan. | H3: Feb | I3: Mar | J3: Apr | K3: May | L3: Jun | M3: Jul | N3: Aug | O3: Sep | P3: Oct | Q3: Nov | R3: Dec | S3: Year Total
E4: days | F4: for Month | G4: 31 | H4: 28 | I4: 31 | J4: 30 | K4: 31 | L4: 30 | M4: 31 | N4: 31 | O4: 30 | P4: 31 | Q4: 30 | R4: 31 | S4: =SUM(G4,H4,I4,J4,K4,L4,M4,N4,O4,P4,Q4,R4) -> 365 | T4: yearly
B5: 2nd yr | E5: Daily | F5: Vistors | G5: ='F.P.YEAR 2'!G6 -> 150 | H5: ='F.P.YEAR 2'!H6 -> 150 | I5: ='F.P.YEAR 2'!I6 -> 165 | J5: ='F.P.YEAR 2'!J6 -> 180 | K5: ='F.P.YEAR 2'!K6 -> 150 | L5: ='F.P.YEAR 2'!L6 -> 150 | M5: ='F.P.YEAR 2'!M6 -> 225 | N5: ='F.P.YEAR 2'!N6 -> 255 | O5: ='F.P.YEAR 2'!O6 -> 225 | P5: ='F.P.YEAR 2'!P6 -> 180 | Q5: ='F.P.YEAR 2'!Q6 -> 150 | R5: ='F.P.YEAR 2'!R6 -> 150 | S5: ='F.P.YEAR 2'!S7 -> 64875 | T5: yearly
A6: Year 3 | B6: 3rd yr | C6: rooms | D6: Price/unit | F6: (+10%) | G6: =G5*1.1 -> 165 | H6: =H5*1.1 -> 165 | I6: 181.5 | J6: 198 | K6: 165 | L6: 165 | M6: 247.5 | N6: 280.5 | O6: 247.5 | P6: 198 | Q6: 165 | R6: 165
D7: occpancy | E7: 0.65 | F7: Monthly | G7: =G4*G6 -> 5115 | H7: =H4*H6 -> 4620 | I7: 5626.5 | J7: 5940 | K7: 5115 | L7: 4950 | M7: 7672.5 | N7: 8695.5 | O7: 7425 | P7: 6138 | Q7: 4950 | R7: 5115 | S7: =SUM(G7:R7) -> 71362.5 | T7: yearly
A8: Lodging | B8: Room w/attached outdoor Bath (Sulfur Soaking), weekday $250/2pax+weekend $350 / 2pax, Breakfast ,Admission fee included | C8: 0 | D8: =((250*4)+(350*3))/7 -> 292.8571429 | E8: =C8*$E$6 -> 0 | G8: =$D$8*$E$8*G4 -> 0 | H8: =$D$8*$E$8*H4 -> 0 | I8: 0 | J8: 0 | K8: 0 | L8: 0 | M8: 0 | N8: 0 | O8: 0 | P8: 0 | Q8: 0 | R8: 0 | S8: =SUM(G8:R8) -> 0
B9: Standard room, weekday $200/2pax+weekend $250 /2pax,Breakfast included | C9: 0 | D9: =((200*4)+(250*3))/7 -> 221.4285714 | E9: =C9*$E$6 -> 0 | G9: =$D$9*$E$9*G4 -> 0 | H9: =$D$9*$E$9*H4 -> 0 | I9: 0 | J9: 0 | K9: 0 | L9: 0 | M9: 0 | N9: 0 | O9: 0 | P9: 0 | Q9: 0 | R9: 0 | S9: =SUM(G9:R9) -> 0
A10: Guest House | B10: Hotel, weekday/N $150/2pax+weekend/N, $200 /2pax,Breakfast. | C10: 10 | D10: =((150*4)+(200*3))/7 -> 171.4285714 | E10: =C10*$E$7 -> 6.5 | F10: monthly sales | G10: =$D$10*$E$10*G4 -> 34542.85714 | H10: =$D$10*$E$10*H4 -> 31200 | I10: 34542.85714 | J10: 33428.57143 | K10: 34542.85714 | L10: 33428.57143 | M10: 34542.85714 | N10: 34542.85714 | O10: 33428.57143 | P10: 34542.85714 | Q10: 33428.57143 | R10: 34542.85714 | S10: =SUM(G10:R10) -> 406714.2857
F11: Sales Sub TTL | G11: =G8+G9+G10 -> 34542.85714 | H11: =H8+H9+H10 -> 31200 | I11: 34542.85714 | J11: 33428.57143 | K11: 34542.85714 | L11: 33428.57143 | M11: 34542.85714 | N11: 34542.85714 | O11: 33428.57143 | P11: 34542.85714 | Q11: 33428.57143 | R11: 34542.85714 | S11: =SUM(G11:R11) -> 406714.2857
F12: Profit Rate | G12: 1 | H12: 1 | I12: 1 | J12: 1 | K12: 1 | L12: 1 | M12: 1 | N12: 1 | O12: 1 | P12: 1 | Q12: 1 | R12: 1 | S12: 0.85
F13: Profit | G13: =G11*G12 -> 34542.85714 | H13: =H11*H12 -> 31200 | I13: 34542.85714 | J13: 33428.57143 | K13: 34542.85714 | L13: 33428.57143 | M13: 34542.85714 | N13: 34542.85714 | O13: 33428.57143 | P13: 34542.85714 | Q13: 33428.57143 | R13: 34542.85714 | S13: 345707.1429
A14: Spa Service & Program | B14: Main Package[Admission w/ Public Outdoor bath+ indoor private Bath (Sulfur Soaking)+ 60 Min massage | C14: Ave. | D14: =((D16*4)+(D17*3))/7 -> 132.8571429 | E14: 0.5 | F14: Monthly Pax | G14: =G6*G4*$E$14 -> 2557.5 | H14: =H6*H4*$E$14 -> 2310 | I14: 2813.25 | J14: 2970 | K14: 2557.5 | L14: 2475 | M14: 3836.25 | N14: 4347.75 | O14: 3712.5 | P14: 3069 | Q14: 2475 | R14: 2557.5 | S14: =SUM(G14:R14) -> 35681.25
F15: Sales | G15: =$D$14*G14 -> 339782.1429 | H15: =$D$14*H14 -> 306900 | I15: 373760.3571 | J15: 394585.7143 | K15: 339782.1429 | L15: 328821.4286 | M15: 509673.2143 | N15: 577629.6429 | O15: 493232.1429 | P15: 407738.5714 | Q15: 328821.4286 | R15: 339782.1429 | S15: =SUM(G15:R15) -> 4740508.929
C16: week | D16: 120 | F16: Profit Rate | G16: 1 | H16: =G16 -> 1 | I16: =H16 -> 1 | J16: 1 | K16: 1 | L16: 1 | M16: 1 | N16: 1 | O16: 1 | P16: 1 | Q16: 1 | R16: 1 | S16: 1
C17: weekend | D17: 150 | F17: Profit | G17: =G15*G16 -> 339782.1429 | H17: =H15*H16 -> 306900 | I17: 373760.3571 | J17: 394585.7143 | K17: 339782.1429 | L17: 328821.4286 | M17: 509673.2143 | N17: 577629.6429 | O17: 493232.1429 | P17: 407738.5714 | Q17: 328821.4286 | R17: 339782.1429 | S17: 4740508.929
A22: Spa Service & Program | B22: Budget Package[ Addmission+public outdoorbath | D22: =((D24*4)+(D25*3))/7 -> 58.57142857 | E22: =1-E14 -> 0.5 | F22: Monthly Pax | G22: =G4*G6*$E$22 -> 2557.5 | H22: 2310 | I22: 2813.25 | J22: 2970 | K22: 2557.5 | L22: 2475 | M22: 3836.25 | N22: 4347.75 | O22: 3712.5 | P22: 3069 | Q22: 2475 | R22: 2557.5 | S22: =SUM(G22:R22) -> 35681.25
F23: Sales | G23: =$D$22*G22 -> 149796.4286 | H23: 135300 | I23: 164776.0714 | J23: 173957.1429 | K23: 149796.4286 | L23: 144964.2857 | M23: 224694.6429 | N23: 254653.9286 | O23: 217446.4286 | P23: 179755.7143 | Q23: 144964.2857 | R23: 149796.4286 | S23: =SUM(G23:R23) -> 2089901.786
C24: week | D24: 50 | F24: Profit Rate | G24: 1 | H24: 1 | I24: 1 | J24: 1 | K24: 1 | L24: 1 | M24: 1 | N24: 1 | O24: 1 | P24: 1 | Q24: 1 | R24: 1 | S24: 1
C25: weekend | D25: 70 | F25: Profit | G25: =G23*G24 -> 149796.4286 | H25: 135300 | I25: 164776.0714 | J25: 173957.1429 | K25: 149796.4286 | L25: 144964.2857 | M25: =M23*M24 -> 224694.6429 | N25: =N23*N24 -> 254653.9286 | O25: 217446.4286 | P25: 179755.7143 | Q25: 144964.2857 | R25: 149796.4286 | S25: 2089901.786
A26: Spa Service & Program | B26: Nail/Foot | F26: Monthly Pax | G26: 0 | H26: 0 | I26: 0 | J26: 0 | K26: 0 | L26: 0 | M26: 0 | N26: 0 | O26: 0 | P26: 0 | Q26: 0 | R26: 0 | S26: =SUM(G26:R26) -> 0
F27: Sales | G27: =$D$26*G26 -> 0 | H27: 0 | I27: 0 | J27: 0 | K27: 0 | L27: 0 | M27: 0 | N27: 0 | O27: 0 | P27: 0 | Q27: 0 | R27: 0 | S27: =SUM(G27:R27) -> 0
F28: Profit Rate | G28: 0.95 | H28: 0.95 | I28: 0.95 | J28: 0.95 | K28: 0.95 | L28: 0.95 | M28: 0.95 | N28: 0.95 | O28: 0.95 | P28: 0.95 | Q28: 0.95 | R28: 0.95 | S28: 0.95
F29: Profit | G29: =G27*G28 -> 0 | H29: 0 | I29: 0 | J29: 0 | K29: 0 | L29: 0 | M29: =M27*M28 -> 0 | N29: =N27*N28 -> 0 | O29: 0 | P29: 0 | Q29: 0 | R29: 0 | S29: 0
A30: Food & Beverage | B30: Café | D30: 15 | E30: 0.6 | F30: Monthly Pax | G30: =G4*G6*$E$30 -> 3069 | H30: 2772 | I30: 3375.9 | J30: 3564 | K30: 3069 | L30: 2970 | M30: 4603.5 | N30: 5217.3 | O30: 4455 | P30: 3682.8 | Q30: 2970 | R30: 3069 | S30: =SUM(G30:R30) -> 42817.5
F31: Sales | G31: =$D$30*G30 -> 46035 | H31: 41580 | I31: 50638.5 | J31: 53460 | K31: 46035 | L31: 44550 | M31: 69052.5 | N31: 78259.5 | O31: 66825 | P31: 55242 | Q31: 44550 | R31: 46035 | S31: =SUM(G31:R31) -> 642262.5
F32: Profit Rate | G32: 0.8 | H32: 0.8 | I32: 0.8 | J32: 0.8 | K32: 0.8 | L32: 0.8 | M32: 0.8 | N32: 0.8 | O32: 0.8 | P32: 0.8 | Q32: 0.8 | R32: 0.8 | S32: 0.8
F33: Profit | G33: =G31*G32 -> 36828 | H33: 33264 | I33: 40510.8 | J33: 42768 | K33: 36828 | L33: 35640 | M33: =M31*M32 -> 55242 | N33: =N31*N32 -> 62607.6 | O33: 53460 | P33: 44193.6 | Q33: 35640 | R33: 36828 | S33: 513810
A34: Food & Beverage | B34: Restaurant rent income | D34: 9900 | F34: Monthly Pax | G34: 1 | H34: 1 | I34: 1 | J34: 1 | K34: 1 | L34: 1 | M34: 1 | N34: 1 | O34: 1 | P34: 1 | Q34: 1 | R34: 1 | S34: 12
F35: Sales | G35: 9900 | H35: 9900 | I35: 9900 | J35: 9900 | K35: 9900 | L35: 9900 | M35: 9900 | N35: 9900 | O35: 9900 | P35: 9900 | Q35: 9900 | R35: 9900 | S35: =9900*12 -> 118800
F36: Profit Rate | G36: 1 | H36: 1 | I36: 1 | J36: 1 | K36: 1 | L36: 1 | M36: 1 | N36: 1 | O36: 1 | P36: 1 | Q36: 1 | R36: 1 | S36: 1
F37: Profit | G37: =G35*G36 -> 9900 | H37: 9900 | I37: 9900 | J37: 9900 | K37: 9900 | L37: 9900 | M37: =M35*M36 -> 9900 | N37: =N35*N36 -> 9900 | O37: 9900 | P37: 9900 | Q37: 9900 | R37: 9900 | S37: 118800
B43: Total Sales Revenue | G43: =G11+G15+G19+G23+G27+G31+G35+G39 -> 580056.4286 | H43: =H11+H15+H19+H23+H27+H31+H35+H39 -> 524880 | I43: 633617.7857 | J43: 665331.4286 | K43: 580056.4286 | L43: 561664.2857 | M43: 847863.2143 | N43: 954985.9286 | O43: 820832.1429 | P43: 687179.1429 | Q43: 561664.2857 | R43: 580056.4286 | S43: =SUM(G43:R43) -> 7998187.5
S44: =SUM(G43:R43) -> 7998187.5
B45: COGS
A46: Cost of Good Sold | B46: Food &Beberage COGS | G46: =(G11*(1-G12))+(G15*(1-G16))+(G19*(1-G20))+(G23*(1-G24))+(G31*(1-G32))+(G35*(1-G36)) -> 9207 | H46: =(H11*(1-H12))+(H15*(1-H16))+(H19*(1-H20))+(H23*(1-H24))+(H31*(1-H32))+(H35*(1-H36)) -> 8316 | I46: 10127.7 | J46: 10692 | K46: 9207 | L46: 8910 | M46: 13810.5 | N46: 15651.9 | O46: 13365 | P46: 11048.4 | Q46: 8910 | R46: 9207 | S46: =SUM(G46:R46) -> 128452.5
B47: Gift supply COGS | G47: =G39*(1-G40) -> 0 | H47: =H39*(1-H40) -> 0 | I47: 0 | J47: 0 | K47: 0 | L47: 0 | M47: 0 | N47: 0 | O47: 0 | P47: 0 | Q47: 0 | R47: 0 | S47: =SUM(G47:R47) -> 0
A49: Total Gross Profit | B49: Total Gross Profit | G49: =G43-G46-G47 -> 570849.4286 | H49: =H43-H46-H47 -> 516564 | I49: 623490.0857 | J49: 654639.4286 | K49: 570849.4286 | L49: 552754.2857 | M49: 834052.7143 | N49: 939334.0286 | O49: 807467.1429 | P49: 676130.7429 | Q49: 552754.2857 | R49: 570849.4286 | S49: 7869735
B50: Expense
A51: Credit Card Fee/Bank/Other/Misc. | B51: Credit Card Fee/Bank/Other/Misc. | G51: =G43*0.02 -> 11601.12857 | H51: 10497.6 | I51: 12672.35571 | J51: 13306.62857 | K51: 11601.12857 | L51: 11233.28571 | M51: 16957.26429 | N51: 19099.71857 | O51: 16416.64286 | P51: 13743.58286 | Q51: 11233.28571 | R51: 11601.12857 | S51: 159963.75
A52: Property Tax - Under Pilot Program | B52: Property Tax - Under Pilot Program | G52: =66752/12 -> 5562.666667 | H52: =66752/12 -> 5562.666667 | I52: 5562.666667 | J52: 5562.666667 | K52: 5562.666667 | L52: 5562.666667 | M52: 5562.666667 | N52: 5562.666667 | O52: 5562.666667 | P52: 5562.666667 | Q52: 5562.666667 | R52: 5562.666667 | S52: =SUM(G52:R52) -> 66752
A53: Payroll | B53: Payroll | G53: ='payroll.tax Y3'!J37 -> 186267.375 | H53: =$G$53 -> 186267.375 | I53: =$G$53 -> 186267.375 | J53: 186267.375 | K53: 186267.375 | L53: 186267.375 | M53: 186267.375 | N53: 186267.375 | O53: 186267.375 | P53: 186267.375 | Q53: 186267.375 | R53: 186267.375 | S53: 2235208.5
A54: Payroll Tax | B54: Payroll Tax | G54: ='payroll.tax Y3'!M37 -> 13251.47119 | H54: =G54 -> 13251.47119 | I54: =H54 -> 13251.47119 | J54: 13251.47119 | K54: 13251.47119 | L54: 13251.47119 | M54: 13251.47119 | N54: 13251.47119 | O54: 13251.47119 | P54: 13251.47119 | Q54: 13251.47119 | R54: 13251.47119 | S54: 159017.6542
A55: Sales Tax | B55: Sales Tax | G55: =G43*0.08 -> 46404.51429 | H55: 41990.4 | I55: 50689.42286 | J55: 53226.51429 | K55: 46404.51429 | L55: 44933.14286 | M55: 67829.05714 | N55: 76398.87429 | O55: 65666.57143 | P55: 54974.33143 | Q55: 44933.14286 | R55: 46404.51429 | S55: =SUM(G55:R55) -> 639855
A56: Gas | B56: Gas | G56: =143.33*G4 -> 4443.23 | H56: =143.33*H4 -> 4013.24 | I56: 4443.23 | J56: 4299.9 | K56: 4443.23 | L56: 4299.9 | M56: 4443.23 | N56: 4443.23 | O56: 4299.9 | P56: 4443.23 | Q56: 4299.9 | R56: 4443.23 | S56: 52315.45
A57: Electricity | B57: Electricity | G57: =15000*0.352564 -> 5288.46 | H57: =15000*0.352564 -> 5288.46 | I57: 5288.46 | J57: 5288.46 | K57: 5288.46 | L57: 5288.46 | M57: 5288.46 | N57: 5288.46 | O57: 5288.46 | P57: 5288.46 | Q57: 5288.46 | R57: 5288.46 | S57: 63461.52
A58: Water & Sewer | B58: Water & Sewer | G58: =(($G$4*G6)*6.6043*0.0229)+($G$4*61.01) -> 2664.894774 | H58: 2664.894774 | I58: 2742.253251 | J58: 2819.611729 | K58: 2664.894774 | L58: 2664.894774 | M58: 3051.687161 | N58: 3206.404116 | O58: 3051.687161 | P58: 2819.611729 | Q58: 2664.894774 | R58: 2664.894774 | S58: 33680.62379
A59: Phone,Internet,Cable | B59: Phone,Internet,Cable | G59: 1500 | H59: 1500 | I59: 1500 | J59: 1500 | K59: 1500 | L59: 1500 | M59: 1500 | N59: 1500 | O59: 1500 | P59: 1500 | Q59: 1500 | R59: 1500 | S59: 18000
A60: Laundry & Sanitation | B60: Laundry & Sanitation | G60: =($G$4*G6*1.4*0.37)+(71.42*$G$4) -> 4863.59 | H60: =($G$4*H6*1.4*0.37)+(71.42*$G$4) -> 4863.59 | I60: 5128.547 | J60: 5393.504 | K60: 4863.59 | L60: 4863.59 | M60: 6188.375 | N60: 6718.289 | O60: 6188.375 | P60: 5393.504 | Q60: 4863.59 | R60: 4863.59 | S60: 64192.134
A61: Bath house Supplies | B61: Bath house Supplies | G61: =G4*G6*0.5 -> 2557.5 | H61: 2310 | I61: 2813.25 | J61: 2970 | K61: 2557.5 | L61: 2475 | M61: 3836.25 | N61: 4347.75 | O61: 3712.5 | P61: 3069 | Q61: 2475 | R61: 2557.5 | S61: 35681.25
A63: Advertising(Media/ SN/Internet) | B63: Advertising(Media/ SN/Internet) | G63: 12000 | H63: =G63 -> 12000 | I63: =H63 -> 12000 | J63: 12000 | K63: 12000 | L63: 12000 | M63: 12000 | N63: 12000 | O63: 12000 | P63: 12000 | Q63: 12000 | R63: 12000 | S63: 144000
A64: Litigation,Insurance&Workers Comp | B64: Litigation,Insurance&Workers Comp | G64: 7904 | H64: 7904 | I64: 7904 | J64: 7904 | K64: 7904 | L64: 7904 | M64: 7904 | N64: 7904 | O64: 7904 | P64: 7904 | Q64: 7904 | R64: 7904 | S64: 94848
A65: Depreciation for properties | B65: Depreciation | G65: 5000 | H65: 5000 | I65: 5000 | J65: 5000 | K65: 5000 | L65: 5000 | M65: 5000 | N65: 5000 | O65: 5000 | P65: 5000 | Q65: 5000 | R65: 5000 | S65: 60000
A66: Loan Principal&Interests | B66: Loan Principal&Interests | G66: 31001.24 | H66: 31001.24 | I66: 31001.24 | J66: 31001.24 | K66: 31001.24 | L66: 31001.24 | M66: 31001.24 | N66: 31001.24 | O66: 31001.24 | P66: 31001.24 | Q66: 31001.24 | R66: 31001.24 | S66: 372014.88
A67: Professional Fee | B67: Professional Fee | G67: 4000 | H67: 4000 | I67: 4000 | J67: 4000 | K67: 4000 | L67: 4000 | M67: 4000 | N67: 4000 | O67: 4000 | P67: 4000 | Q67: 4000 | R67: 4000 | S67: 48000
A68: Pest Control | B68: Pest Control | G68: 2083 | H68: 2083 | I68: 2083 | J68: 2083 | K68: 2083 | L68: 2083 | M68: 2083 | N68: 2083 | O68: 2083 | P68: 2083 | Q68: 2083 | R68: 2083 | S68: =SUM(G68:R68) -> 24996
A69: Licenses and permits | B69: Licenses and permits | G69: 833 | H69: 833 | I69: 833 | J69: 833 | K69: 833 | L69: 833 | M69: 833 | N69: 833 | O69: 833 | P69: 833 | Q69: 833 | R69: 833 | S69: 9996
A70: Postage and delivery | B70: Postage and delivery | G70: 667 | H70: 667 | I70: 667 | J70: 667 | K70: 667 | L70: 667 | M70: 667 | N70: 667 | O70: 667 | P70: 667 | Q70: 667 | R70: 667 | S70: 8004
A71: Printing (brouchure,sign) | B71: Printing (brouchure,sign) | G71: 2000 | H71: 2000 | I71: 2000 | J71: 2000 | K71: 2000 | L71: 2000 | M71: 2000 | N71: 2000 | O71: 2000 | P71: 2000 | Q71: 2000 | R71: 2000 | S71: 24000
A72: Shuttle service(2 buses) | B72: Bus insurance | G72: 8400 | H72: 8400 | I72: 8400 | J72: 8400 | K72: 8400 | L72: 8400 | M72: 8400 | N72: 8400 | O72: 8400 | P72: 8400 | Q72: 8400 | R72: 8400 | S72: 100800
A73: Shuttle service(2 buses) | B73: Bus maintenance | G73: 11700 | H73: 11700 | I73: 11700 | J73: 11700 | K73: 11700 | L73: 11700 | M73: 11700 | N73: 11700 | O73: 11700 | P73: 11700 | Q73: 11700 | R73: 11700 | S73: 140400
A74: Shuttle service(2 buses) | B74: Bus finance | G74: 21183.28 | H74: 21430 | I74: 21430 | J74: 21430 | K74: 21430 | L74: 21430 | M74: 21430 | N74: 21430 | O74: 21430 | P74: 21430 | Q74: 21430 | R74: 21430 | S74: 256913.28
A75: Dues & Subscription | B75: Dues & Subscription | G75: 208.3 | H75: 208.3 | I75: 208.3 | J75: 208.3 | K75: 208.3 | L75: 208.3 | M75: 208.3 | N75: 208.3 | O75: 208.3 | P75: 208.3 | Q75: 208.3 | R75: 208.3 | S75: 2499.6
A76: Sub-Total Expense | B76: Sub-Total Expense | G76: =SUM(G51:G75) -> 391384.6505 | H76: =SUM(H51:H75) -> 385436.2376 | I76: 397585.5717 | J76: 401112.6714 | K76: 391631.3705 | L76: 389566.3262 | M76: 421402.3764 | N76: 433310.7788 | O76: 418432.1893 | P76: 403539.7729 | Q76: 389566.3262 | R76: 391631.3705 | S76: 4814599.642
A77: Contingency | B77: Contingency | G77: =G76*0.03 -> 11741.53951 | H77: =H76*0.03 -> 11563.08713 | I77: 11927.56715 | J77: 12033.38014 | K77: 11748.94111 | L77: 11686.98979 | M77: 12642.07129 | N77: 12999.32336 | O77: 12552.96568 | P77: 12106.19319 | Q77: 11686.98979 | R77: 11748.94111 | S77: =SUM(G77:R77) -> 144437.9893
A78: Total Expense | B78: Total Expense | G78: =G76+G77 -> 403126.19 | H78: =H76+H77 -> 396999.3248 | I78: 409513.1388 | J78: 413146.0516 | K78: 403380.3116 | L78: 401253.316 | M78: 434044.4477 | N78: 446310.1022 | O78: 430985.155 | P78: 415645.9661 | Q78: 401253.316 | R78: 403380.3116 | S78: =SUM(G78:R78) -> 4959037.631
A80: Total Final Net Profit | B80: Total Final Profit | G80: =G49-G78 -> 167723.2386 | H80: =H49-H78 -> 119564.6752 | I80: 213976.9469 | J80: 241493.377 | K80: 167469.117 | L80: 151500.9697 | M80: 400008.2665 | N80: 493023.9264 | O80: 376481.9879 | P80: 260484.7768 | Q80: 151500.9697 | R80: 167469.117 | S80: 2910697.369
S81: =S80/S83 -> 1.191719265
R82: Growth | S82: =(S80/S83)-1 -> 0.1917192652 | T82: yearly
R83: 2nd Y | S83: ='F.P.YEAR 2'!S80 -> 2442435.441

Sheet F.P.YEAR 4
A1: Year 3 Profit & Loss | J1: Peak : | L1: Dec.Jan.Feb & Jun | O1: High Peak : | P1: Jul, Aug
B3: Business | G3: Jan. | H3: Feb | I3: Mar | J3: Apr | K3: May | L3: Jun | M3: Jul | N3: Aug | O3: Sep | P3: Oct | Q3: Nov | R3: Dec | S3: Year Total
E4: days | F4: for Month | G4: 31 | H4: 28 | I4: 31 | J4: 30 | K4: 31 | L4: 30 | M4: 31 | N4: 31 | O4: 30 | P4: 31 | Q4: 30 | R4: 31 | S4: =SUM(G4,H4,I4,J4,K4,L4,M4,N4,O4,P4,Q4,R4) -> 365 | T4: yearly
B5: 2nd yr | E5: Daily | F5: Vistors | G5: ='F.P.YEAR 3'!G6 -> 165 | H5: ='F.P.YEAR 3'!H6 -> 165 | I5: ='F.P.YEAR 3'!I6 -> 181.5 | J5: ='F.P.YEAR 3'!J6 -> 198 | K5: ='F.P.YEAR 3'!K6 -> 165 | L5: ='F.P.YEAR 3'!L6 -> 165 | M5: ='F.P.YEAR 3'!M6 -> 247.5 | N5: ='F.P.YEAR 3'!N6 -> 280.5 | O5: ='F.P.YEAR 3'!O6 -> 247.5 | P5: ='F.P.YEAR 3'!P6 -> 198 | Q5: ='F.P.YEAR 3'!Q6 -> 165 | R5: ='F.P.YEAR 3'!R6 -> 165 | S5: ='F.P.YEAR 3'!S7 -> 71362.5 | T5: yearly
A6: Year 3 | B6: 3rd yr | C6: rooms | D6: Price/unit | F6: (+10%) | G6: =G5*1.1 -> 181.5 | H6: =H5*1.1 -> 181.5 | I6: 199.65 | J6: 217.8 | K6: 181.5 | L6: 181.5 | M6: 272.25 | N6: 308.55 | O6: 272.25 | P6: 217.8 | Q6: 181.5 | R6: 181.5
D7: occpancy | E7: 0.65 | F7: Monthly | G7: =G4*G6 -> 5626.5 | H7: =H4*H6 -> 5082 | I7: 6189.15 | J7: 6534 | K7: 5626.5 | L7: 5445 | M7: 8439.75 | N7: 9565.05 | O7: 8167.5 | P7: 6751.8 | Q7: 5445 | R7: 5626.5 | S7: =SUM(G7:R7) -> 78498.75 | T7: yearly
A8: Lodging | B8: Room w/attached outdoor Bath (Sulfur Soaking), weekday $250/2pax+weekend $350 / 2pax, Breakfast ,Admission fee included | C8: 0 | D8: =((250*4)+(350*3))/7 -> 292.8571429 | E8: =C8*$E$6 -> 0 | G8: =$D$8*$E$8*G4 -> 0 | H8: =$D$8*$E$8*H4 -> 0 | I8: 0 | J8: 0 | K8: 0 | L8: 0 | M8: 0 | N8: 0 | O8: 0 | P8: 0 | Q8: 0 | R8: 0 | S8: =SUM(G8:R8) -> 0
B9: Standard room, weekday $200/2pax+weekend $250 /2pax,Breakfast included | C9: 0 | D9: =((200*4)+(250*3))/7 -> 221.4285714 | E9: =C9*$E$6 -> 0 | G9: =$D$9*$E$9*G4 -> 0 | H9: =$D$9*$E$9*H4 -> 0 | I9: 0 | J9: 0 | K9: 0 | L9: 0 | M9: 0 | N9: 0 | O9: 0 | P9: 0 | Q9: 0 | R9: 0 | S9: =SUM(G9:R9) -> 0
A10: Guest House | B10: Hotel, weekday/N $150/2pax+weekend/N, $200 /2pax,Breakfast. | C10: 10 | D10: =((150*4)+(200*3))/7 -> 171.4285714 | E10: =C10*$E$7 -> 6.5 | F10: monthly sales | G10: =$D$10*$E$10*G4 -> 34542.85714 | H10: =$D$10*$E$10*H4 -> 31200 | I10: 34542.85714 | J10: 33428.57143 | K10: 34542.85714 | L10: 33428.57143 | M10: 34542.85714 | N10: 34542.85714 | O10: 33428.57143 | P10: 34542.85714 | Q10: 33428.57143 | R10: 34542.85714 | S10: =SUM(G10:R10) -> 406714.2857
F11: Sales Sub TTL | G11: =G8+G9+G10 -> 34542.85714 | H11: =H8+H9+H10 -> 31200 | I11: 34542.85714 | J11: 33428.57143 | K11: 34542.85714 | L11: 33428.57143 | M11: 34542.85714 | N11: 34542.85714 | O11: 33428.57143 | P11: 34542.85714 | Q11: 33428.57143 | R11: 34542.85714 | S11: =SUM(G11:R11) -> 406714.2857
F12: Profit Rate | G12: 1 | H12: 1 | I12: 1 | J12: 1 | K12: 1 | L12: 1 | M12: 1 | N12: 1 | O12: 1 | P12: 1 | Q12: 1 | R12: 1 | S12: 0.85
F13: Profit | G13: =G11*G12 -> 34542.85714 | H13: =H11*H12 -> 31200 | I13: 34542.85714 | J13: 33428.57143 | K13: 34542.85714 | L13: 33428.57143 | M13: 34542.85714 | N13: 34542.85714 | O13: 33428.57143 | P13: 34542.85714 | Q13: 33428.57143 | R13: 34542.85714 | S13: 345707.1429
A14: Spa Service & Program | B14: Main Package[Admission w/ Public Outdoor bath+ indoor private Bath (Sulfur Soaking)+ 60 Min massage | C14: Ave. | D14: =((D16*4)+(D17*3))/7 -> 132.8571429 | E14: 0.5 | F14: Monthly Pax | G14: =G6*G4*$E$14 -> 2813.25 | H14: =H6*H4*$E$14 -> 2541 | I14: 3094.575 | J14: 3267 | K14: 2813.25 | L14: 2722.5 | M14: 4219.875 | N14: 4782.525 | O14: 4083.75 | P14: 3375.9 | Q14: 2722.5 | R14: 2813.25 | S14: =SUM(G14:R14) -> 39249.375
F15: Sales | G15: =$D$14*G14 -> 373760.3571 | H15: =$D$14*H14 -> 337590 | I15: 411136.3929 | J15: 434044.2857 | K15: 373760.3571 | L15: 361703.5714 | M15: 560640.5357 | N15: 635392.6071 | O15: 542555.3571 | P15: 448512.4286 | Q15: 361703.5714 | R15: 373760.3571 | S15: =SUM(G15:R15) -> 5214559.821
C16: week | D16: 120 | F16: Profit Rate | G16: 1 | H16: =G16 -> 1 | I16: =H16 -> 1 | J16: 1 | K16: 1 | L16: 1 | M16: 1 | N16: 1 | O16: 1 | P16: 1 | Q16: 1 | R16: 1 | S16: 1
C17: weekend | D17: 150 | F17: Profit | G17: =G15*G16 -> 373760.3571 | H17: =H15*H16 -> 337590 | I17: 411136.3929 | J17: 434044.2857 | K17: 373760.3571 | L17: 361703.5714 | M17: 560640.5357 | N17: 635392.6071 | O17: 542555.3571 | P17: 448512.4286 | Q17: 361703.5714 | R17: 373760.3571 | S17: 5214559.821
A22: Spa Service & Program | B22: Budget Package[ Addmission+public outdoorbath | D22: =((D24*4)+(D25*3))/7 -> 58.57142857 | E22: =1-E14 -> 0.5 | F22: Monthly Pax | G22: =G4*G6*$E$22 -> 2813.25 | H22: 2541 | I22: 3094.575 | J22: 3267 | K22: 2813.25 | L22: 2722.5 | M22: 4219.875 | N22: 4782.525 | O22: 4083.75 | P22: 3375.9 | Q22: 2722.5 | R22: 2813.25 | S22: =SUM(G22:R22) -> 39249.375
F23: Sales | G23: =$D$22*G22 -> 164776.0714 | H23: 148830 | I23: 181253.6786 | J23: 191352.8571 | K23: 164776.0714 | L23: 159460.7143 | M23: 247164.1071 | N23: 280119.3214 | O23: 239191.0714 | P23: 197731.2857 | Q23: 159460.7143 | R23: 164776.0714 | S23: =SUM(G23:R23) -> 2298891.964
C24: week | D24: 50 | F24: Profit Rate | G24: 1 | H24: 1 | I24: 1 | J24: 1 | K24: 1 | L24: 1 | M24: 1 | N24: 1 | O24: 1 | P24: 1 | Q24: 1 | R24: 1 | S24: 1
C25: weekend | D25: 70 | F25: Profit | G25: =G23*G24 -> 164776.0714 | H25: 148830 | I25: 181253.6786 | J25: 191352.8571 | K25: 164776.0714 | L25: 159460.7143 | M25: =M23*M24 -> 247164.1071 | N25: =N23*N24 -> 280119.3214 | O25: 239191.0714 | P25: 197731.2857 | Q25: 159460.7143 | R25: 164776.0714 | S25: 2298891.964
A26: Spa Service & Program | B26: Nail/Foot | F26: Monthly Pax | G26: 0 | H26: 0 | I26: 0 | J26: 0 | K26: 0 | L26: 0 | M26: 0 | N26: 0 | O26: 0 | P26: 0 | Q26: 0 | R26: 0 | S26: =SUM(G26:R26) -> 0
F27: Sales | G27: =$D$26*G26 -> 0 | H27: 0 | I27: 0 | J27: 0 | K27: 0 | L27: 0 | M27: 0 | N27: 0 | O27: 0 | P27: 0 | Q27: 0 | R27: 0 | S27: =SUM(G27:R27) -> 0
F28: Profit Rate | G28: 0.95 | H28: 0.95 | I28: 0.95 | J28: 0.95 | K28: 0.95 | L28: 0.95 | M28: 0.95 | N28: 0.95 | O28: 0.95 | P28: 0.95 | Q28: 0.95 | R28: 0.95 | S28: 0.95
F29: Profit | G29: =G27*G28 -> 0 | H29: 0 | I29: 0 | J29: 0 | K29: 0 | L29: 0 | M29: =M27*M28 -> 0 | N29: =N27*N28 -> 0 | O29: 0 | P29: 0 | Q29: 0 | R29: 0 | S29: 0
A30: Food & Beverage | B30: Café | D30: 15 | E30: 0.6 | F30: Monthly Pax | G30: =G4*G6*$E$30 -> 3375.9 | H30: 3049.2 | I30: 3713.49 | J30: 3920.4 | K30: 3375.9 | L30: 3267 | M30: 5063.85 | N30: 5739.03 | O30: 4900.5 | P30: 4051.08 | Q30: 3267 | R30: 3375.9 | S30: =SUM(G30:R30) -> 47099.25
F31: Sales | G31: =$D$30*G30 -> 50638.5 | H31: 45738 | I31: 55702.35 | J31: 58806 | K31: 50638.5 | L31: 49005 | M31: 75957.75 | N31: 86085.45 | O31: 73507.5 | P31: 60766.2 | Q31: 49005 | R31: 50638.5 | S31: =SUM(G31:R31) -> 706488.75
F32: Profit Rate | G32: 0.8 | H32: 0.8 | I32: 0.8 | J32: 0.8 | K32: 0.8 | L32: 0.8 | M32: 0.8 | N32: 0.8 | O32: 0.8 | P32: 0.8 | Q32: 0.8 | R32: 0.8 | S32: 0.8
F33: Profit | G33: =G31*G32 -> 40510.8 | H33: 36590.4 | I33: 44561.88 | J33: 47044.8 | K33: 40510.8 | L33: 39204 | M33: =M31*M32 -> 60766.2 | N33: =N31*N32 -> 68868.36 | O33: 58806 | P33: 48612.96 | Q33: 39204 | R33: 40510.8 | S33: 565191
A34: Food & Beverage | B34: Restaurant rent income | D34: 9900 | F34: Monthly Pax | G34: 1 | H34: 1 | I34: 1 | J34: 1 | K34: 1 | L34: 1 | M34: 1 | N34: 1 | O34: 1 | P34: 1 | Q34: 1 | R34: 1 | S34: 12
F35: Sales | G35: 9900 | H35: 9900 | I35: 9900 | J35: 9900 | K35: 9900 | L35: 9900 | M35: 9900 | N35: 9900 | O35: 9900 | P35: 9900 | Q35: 9900 | R35: 9900 | S35: =9900*12 -> 118800
F36: Profit Rate | G36: 1 | H36: 1 | I36: 1 | J36: 1 | K36: 1 | L36: 1 | M36: 1 | N36: 1 | O36: 1 | P36: 1 | Q36: 1 | R36: 1 | S36: 1
F37: Profit | G37: =G35*G36 -> 9900 | H37: 9900 | I37: 9900 | J37: 9900 | K37: 9900 | L37: 9900 | M37: =M35*M36 -> 9900 | N37: =N35*N36 -> 9900 | O37: 9900 | P37: 9900 | Q37: 9900 | R37: 9900 | S37: 118800
B43: Total Sales Revenue | G43: =G11+G15+G19+G23+G27+G31+G35+G39 -> 633617.7857 | H43: =H11+H15+H19+H23+H27+H31+H35+H39 -> 573258 | I43: 692535.2786 | J43: 727531.7143 | K43: 633617.7857 | L43: 613497.8571 | M43: 928205.25 | N43: 1046040.236 | O43: 898582.5 | P43: 751452.7714 | Q43: 613497.8571 | R43: 633617.7857 | S43: =SUM(G43:R43) -> 8745454.821
S44: =SUM(G43:R43) -> 8745454.821
B45: COGS
A46: Cost of Good Sold | B46: Food &Beberage COGS | G46: =(G11*(1-G12))+(G15*(1-G16))+(G19*(1-G20))+(G23*(1-G24))+(G31*(1-G32))+(G35*(1-G36)) -> 10127.7 | H46: =(H11*(1-H12))+(H15*(1-H16))+(H19*(1-H20))+(H23*(1-H24))+(H31*(1-H32))+(H35*(1-H36)) -> 9147.6 | I46: 11140.47 | J46: 11761.2 | K46: 10127.7 | L46: 9801 | M46: 15191.55 | N46: 17217.09 | O46: 14701.5 | P46: 12153.24 | Q46: 9801 | R46: 10127.7 | S46: =SUM(G46:R46) -> 141297.75
B47: Gift supply COGS | G47: =G39*(1-G40) -> 0 | H47: =H39*(1-H40) -> 0 | I47: 0 | J47: 0 | K47: 0 | L47: 0 | M47: 0 | N47: 0 | O47: 0 | P47: 0 | Q47: 0 | R47: 0 | S47: =SUM(G47:R47) -> 0
A49: Total Gross Profit | B49: Total Gross Profit | G49: =G43-G46-G47 -> 623490.0857 | H49: =H43-H46-H47 -> 564110.4 | I49: 681394.8086 | J49: 715770.5143 | K49: 623490.0857 | L49: 603696.8571 | M49: 913013.7 | N49: 1028823.146 | O49: 883881 | P49: 739299.5314 | Q49: 603696.8571 | R49: 623490.0857 | S49: 8604157.071
B50: Expense
A51: Credit Card Fee/Bank/Other/Misc. | B51: Credit Card Fee/Bank/Other/Misc. | G51: =G43*0.02 -> 12672.35571 | H51: 11465.16 | I51: 13850.70557 | J51: 14550.63429 | K51: 12672.35571 | L51: 12269.95714 | M51: 18564.105 | N51: 20920.80471 | O51: 17971.65 | P51: 15029.05543 | Q51: 12269.95714 | R51: 12672.35571 | S51: 174909.0964
A52: Property Tax - Under Pilot Program | B52: Property Tax - Under Pilot Program | G52: =66752/12 -> 5562.666667 | H52: =66752/12 -> 5562.666667 | I52: 5562.666667 | J52: 5562.666667 | K52: 5562.666667 | L52: 5562.666667 | M52: 5562.666667 | N52: 5562.666667 | O52: 5562.666667 | P52: 5562.666667 | Q52: 5562.666667 | R52: 5562.666667 | S52: =SUM(G52:R52) -> 66752
A53: Payroll | B53: Payroll | G53: ='payroll.tax Y4'!J37 -> 195580.7438 | H53: =$G$53 -> 195580.7438 | I53: =$G$53 -> 195580.7438 | J53: 195580.7438 | K53: 195580.7438 | L53: 195580.7438 | M53: 195580.7438 | N53: 195580.7438 | O53: 195580.7438 | P53: 195580.7438 | Q53: 195580.7438 | R53: 195580.7438 | S53: 2346968.925
A54: Payroll Tax | B54: Payroll Tax | G54: ='payroll.tax Y4'!M37 -> 13914.04475 | H54: =G54 -> 13914.04475 | I54: =H54 -> 13914.04475 | J54: 13914.04475 | K54: 13914.04475 | L54: 13914.04475 | M54: 13914.04475 | N54: 13914.04475 | O54: 13914.04475 | P54: 13914.04475 | Q54: 13914.04475 | R54: 13914.04475 | S54: 166968.537
A55: Sales Tax | B55: Sales Tax | G55: =G43*0.08 -> 50689.42286 | H55: 45860.64 | I55: 55402.82229 | J55: 58202.53714 | K55: 50689.42286 | L55: 49079.82857 | M55: 74256.42 | N55: 83683.21886 | O55: 71886.6 | P55: 60116.22171 | Q55: 49079.82857 | R55: 50689.42286 | S55: 699636.3857
A56: Gas | B56: Gas | G56: =143.33*G4 -> 4443.23 | H56: =143.33*H4 -> 4013.24 | I56: 4443.23 | J56: 4299.9 | K56: 4443.23 | L56: 4299.9 | M56: 4443.23 | N56: 4443.23 | O56: 4299.9 | P56: 4443.23 | Q56: 4299.9 | R56: 4443.23 | S56: 52315.45
A57: Electricity | B57: Electricity | G57: =15000*0.352564 -> 5288.46 | H57: =15000*0.352564 -> 5288.46 | I57: 5288.46 | J57: 5288.46 | K57: 5288.46 | L57: 5288.46 | M57: 5288.46 | N57: 5288.46 | O57: 5288.46 | P57: 5288.46 | Q57: 5288.46 | R57: 5288.46 | S57: 63461.52
A58: Water & Sewer | B58: Water & Sewer | G58: =(($G$4*G6)*6.6043*0.0229)+($G$4*61.01) -> 2742.253251 | H58: 2742.253251 | I58: 2827.347577 | J58: 2912.441902 | K58: 2742.253251 | L58: 2742.253251 | M58: 3167.724877 | N58: 3337.913527 | O58: 3167.724877 | P58: 2912.441902 | Q58: 2742.253251 | R58: 2742.253251 | S58: 34779.11417
A59: Phone,Internet,Cable | B59: Phone,Internet,Cable | G59: 1500 | H59: 1500 | I59: 1500 | J59: 1500 | K59: 1500 | L59: 1500 | M59: 1500 | N59: 1500 | O59: 1500 | P59: 1500 | Q59: 1500 | R59: 1500 | S59: 18000
A60: Laundry & Sanitation | B60: Laundry & Sanitation | G60: =($G$4*G6*1.4*0.37)+(71.42*$G$4) -> 5128.547 | H60: =($G$4*H6*1.4*0.37)+(71.42*$G$4) -> 5128.547 | I60: 5419.9997 | J60: 5711.4524 | K60: 5128.547 | L60: 5128.547 | M60: 6585.8105 | N60: 7168.7159 | O60: 6585.8105 | P60: 5711.4524 | Q60: 5128.547 | R60: 5128.547 | S60: 67954.5234
A61: Bath house Supplies | B61: Bath house Supplies | G61: =G4*G6*0.5 -> 2813.25 | H61: 2541 | I61: 3094.575 | J61: 3267 | K61: 2813.25 | L61: 2722.5 | M61: 4219.875 | N61: 4782.525 | O61: 4083.75 | P61: 3375.9 | Q61: 2722.5 | R61: 2813.25 | S61: 39249.375
A63: Advertising(Media/ SN/Internet) | B63: Advertising(Media/ SN/Internet) | G63: 12000 | H63: =G63 -> 12000 | I63: =H63 -> 12000 | J63: 12000 | K63: 12000 | L63: 12000 | M63: 12000 | N63: 12000 | O63: 12000 | P63: 12000 | Q63: 12000 | R63: 12000 | S63: 144000
A64: Litigation,Insurance&Workers Comp | B64: Litigation,Insurance&Workers Comp | G64: 7904 | H64: 7904 | I64: 7904 | J64: 7904 | K64: 7904 | L64: 7904 | M64: 7904 | N64: 7904 | O64: 7904 | P64: 7904 | Q64: 7904 | R64: 7904 | S64: 94848
A65: Depreciation for properties | B65: Depreciation | G65: 5000 | H65: 5000 | I65: 5000 | J65: 5000 | K65: 5000 | L65: 5000 | M65: 5000 | N65: 5000 | O65: 5000 | P65: 5000 | Q65: 5000 | R65: 5000 | S65: 60000
A66: Loan Principal&Interests | B66: Loan Principal&Interests | G66: 31001.24 | H66: 31001.24 | I66: 31001.24 | J66: 31001.24 | K66: 31001.24 | L66: 31001.24 | M66: 31001.24 | N66: 31001.24 | O66: 31001.24 | P66: 31001.24 | Q66: 31001.24 | R66: 31001.24 | S66: 372014.88
A67: Professional Fee | B67: Professional Fee | G67: 4000 | H67: 4000 | I67: 4000 | J67: 4000 | K67: 4000 | L67: 4000 | M67: 4000 | N67: 4000 | O67: 4000 | P67: 4000 | Q67: 4000 | R67: 4000 | S67: 48000
A68: Pest Control | B68: Pest Control | G68: 2083 | H68: 2083 | I68: 2083 | J68: 2083 | K68: 2083 | L68: 2083 | M68: 2083 | N68: 2083 | O68: 2083 | P68: 2083 | Q68: 2083 | R68: 2083 | S68: =SUM(G68:R68) -> 24996
A69: Licenses and permits | B69: Licenses and permits | G69: 833 | H69: 833 | I69: 833 | J69: 833 | K69: 833 | L69: 833 | M69: 833 | N69: 833 | O69: 833 | P69: 833 | Q69: 833 | R69: 833 | S69: 9996
A70: Postage and delivery | B70: Postage and delivery | G70: 667 | H70: 667 | I70: 667 | J70: 667 | K70: 667 | L70: 667 | M70: 667 | N70: 667 | O70: 667 | P70: 667 | Q70: 667 | R70: 667 | S70: 8004
A71: Printing (brouchure,sign) | B71: Printing (brouchure,sign) | G71: 2000 | H71: 2000 | I71: 2000 | J71: 2000 | K71: 2000 | L71: 2000 | M71: 2000 | N71: 2000 | O71: 2000 | P71: 2000 | Q71: 2000 | R71: 2000 | S71: 24000
A72: Shuttle service(2 buses) | B72: Bus insurance | G72: 8400 | H72: 8400 | I72: 8400 | J72: 8400 | K72: 8400 | L72: 8400 | M72: 8400 | N72: 8400 | O72: 8400 | P72: 8400 | Q72: 8400 | R72: 8400 | S72: 100800
A73: Shuttle service(2 buses) | B73: Bus maintenance | G73: 11700 | H73: 11700 | I73: 11700 | J73: 11700 | K73: 11700 | L73: 11700 | M73: 11700 | N73: 11700 | O73: 11700 | P73: 11700 | Q73: 11700 | R73: 11700 | S73: 140400
A74: Shuttle service(2 buses) | B74: Bus finance | G74: 21183.28 | H74: 21430 | I74: 21430 | J74: 21430 | K74: 21430 | L74: 21430 | M74: 21430 | N74: 21430 | O74: 21430 | P74: 21430 | Q74: 21430 | R74: 21430 | S74: 256913.28
A75: Dues & Subscription | B75: Dues & Subscription | G75: 208.3 | H75: 208.3 | I75: 208.3 | J75: 208.3 | K75: 208.3 | L75: 208.3 | M75: 208.3 | N75: 208.3 | O75: 208.3 | P75: 208.3 | Q75: 208.3 | R75: 208.3 | S75: 2499.6
A76: Sub-Total Expense | B76: Sub-Total Expense | G76: =SUM(G51:G75) -> 407314.794 | H76: =SUM(H51:H75) -> 400823.2954 | I76: 414111.1353 | J76: 418016.4209 | K76: 407561.514 | L76: 405315.4411 | M76: 440309.6205 | N76: 453408.8632 | O76: 437067.8905 | P76: 420660.7566 | Q76: 405315.4411 | R76: 407561.514 | S76: 5017466.687
A77: Contingency | B77: Contingency | G77: =G76*0.03 -> 12219.44382 | H77: =H76*0.03 -> 12024.69886 | I77: 12423.33406 | J77: 12540.49263 | K77: 12226.84542 | L77: 12159.46323 | M77: 13209.28862 | N77: 13602.26589 | O77: 13112.03672 | P77: 12619.8227 | Q77: 12159.46323 | R77: 12226.84542 | S77: =SUM(G77:R77) -> 150524.0006
A78: Total Expense | B78: Total Expense | G78: =G76+G77 -> 419534.2378 | H78: =H76+H77 -> 412847.9943 | I78: 426534.4694 | J78: 430556.9135 | K78: 419788.3594 | L78: 417474.9044 | M78: 453518.9092 | N78: 467011.1291 | O78: 450179.9273 | P78: 433280.5793 | Q78: 417474.9044 | R78: 419788.3594 | S78: =SUM(G78:R78) -> 5167990.687
A80: Total Final Net Profit | B80: Total Final Profit | G80: =G49-G78 -> 203955.8479 | H80: =H49-H78 -> 151262.4057 | I80: 254860.3392 | J80: 285213.6008 | K80: 203701.7263 | L80: 186221.9528 | M80: 459494.7908 | N80: 561812.0167 | O80: 433701.0727 | P80: 306018.9521 | Q80: 186221.9528 | R80: 203701.7263 | S80: 3436166.384
S81: =S80/S83 -> 1.180530282
R82: Growth | S82: =(S80/S83)-1 -> 0.1805302815 | T82: yearly
R83: 3rd Y | S83: ='F.P.YEAR 3'!S80 -> 2910697.369

Sheet F.P.YEAR 5
A1: Year 3 Profit & Loss | J1: Peak : | L1: Dec.Jan.Feb & Jun | O1: High Peak : | P1: Jul, Aug
B3: Business | G3: Jan. | H3: Feb | I3: Mar | J3: Apr | K3: May | L3: Jun | M3: Jul | N3: Aug | O3: Sep | P3: Oct | Q3: Nov | R3: Dec | S3: Year Total
E4: days | F4: for Month | G4: 31 | H4: 28 | I4: 31 | J4: 30 | K4: 31 | L4: 30 | M4: 31 | N4: 31 | O4: 30 | P4: 31 | Q4: 30 | R4: 31 | S4: =SUM(G4,H4,I4,J4,K4,L4,M4,N4,O4,P4,Q4,R4) -> 365 | T4: yearly
B5: 2nd yr | E5: Daily | F5: Vistors | G5: ='F.P.YEAR 4'!G6 -> 181.5 | H5: ='F.P.YEAR 4'!H6 -> 181.5 | I5: ='F.P.YEAR 4'!I6 -> 199.65 | J5: ='F.P.YEAR 4'!J6 -> 217.8 | K5: ='F.P.YEAR 4'!K6 -> 181.5 | L5: ='F.P.YEAR 4'!L6 -> 181.5 | M5: ='F.P.YEAR 4'!M6 -> 272.25 | N5: ='F.P.YEAR 4'!N6 -> 308.55 | O5: ='F.P.YEAR 4'!O6 -> 272.25 | P5: ='F.P.YEAR 4'!P6 -> 217.8 | Q5: ='F.P.YEAR 4'!Q6 -> 181.5 | R5: ='F.P.YEAR 4'!R6 -> 181.5 | S5: ='F.P.YEAR 4'!S7 -> 78498.75 | T5: yearly
A6: Year 3 | B6: 3rd yr | C6: rooms | D6: Price/unit | F6: (+10%) | G6: =G5*1.1 -> 199.65 | H6: =H5*1.1 -> 199.65 | I6: 219.615 | J6: 239.58 | K6: 199.65 | L6: 199.65 | M6: 299.475 | N6: 339.405 | O6: 299.475 | P6: 239.58 | Q6: 199.65 | R6: 199.65
D7: occpancy | E7: 0.65 | F7: Monthly | G7: =G4*G6 -> 6189.15 | H7: =H4*H6 -> 5590.2 | I7: 6808.065 | J7: 7187.4 | K7: 6189.15 | L7: 5989.5 | M7: 9283.725 | N7: 10521.555 | O7: 8984.25 | P7: 7426.98 | Q7: 5989.5 | R7: 6189.15 | S7: =SUM(G7:R7) -> 86348.625 | T7: yearly
A8: Lodging | B8: Room w/attached outdoor Bath (Sulfur Soaking), weekday $250/2pax+weekend $350 / 2pax, Breakfast ,Admission fee included | C8: 0 | D8: =((250*4)+(350*3))/7 -> 292.8571429 | E8: =C8*$E$6 -> 0 | G8: =$D$8*$E$8*G4 -> 0 | H8: =$D$8*$E$8*H4 -> 0 | I8: 0 | J8: 0 | K8: 0 | L8: 0 | M8: 0 | N8: 0 | O8: 0 | P8: 0 | Q8: 0 | R8: 0 | S8: =SUM(G8:R8) -> 0
B9: Standard room, weekday $200/2pax+weekend $250 /2pax,Breakfast included | C9: 0 | D9: =((200*4)+(250*3))/7 -> 221.4285714 | E9: =C9*$E$6 -> 0 | G9: =$D$9*$E$9*G4 -> 0 | H9: =$D$9*$E$9*H4 -> 0 | I9: 0 | J9: 0 | K9: 0 | L9: 0 | M9: 0 | N9: 0 | O9: 0 | P9: 0 | Q9: 0 | R9: 0 | S9: =SUM(G9:R9) -> 0
A10: Guest House | B10: Hotel, weekday/N $150/2pax+weekend/N, $200 /2pax,Breakfast. | C10: 10 | D10: =((150*4)+(200*3))/7 -> 171.4285714 | E10: =C10*$E$7 -> 6.5 | F10: monthly sales | G10: =$D$10*$E$10*G4 -> 34542.85714 | H10: =$D$10*$E$10*H4 -> 31200 | I10: 34542.85714 | J10: 33428.57143 | K10: 34542.85714 | L10: 33428.57143 | M10: 34542.85714 | N10: 34542.85714 | O10: 33428.57143 | P10: 34542.85714 | Q10: 33428.57143 | R10: 34542.85714 | S10: =SUM(G10:R10) -> 406714.2857
F11: Sales Sub TTL | G11: =G8+G9+G10 -> 34542.85714 | H11: =H8+H9+H10 -> 31200 | I11: 34542.85714 | J11: 33428.57143 | K11: 34542.85714 | L11: 33428.57143 | M11: 34542.85714 | N11: 34542.85714 | O11: 33428.57143 | P11: 34542.85714 | Q11: 33428.57143 | R11: 34542.85714 | S11: =SUM(G11:R11) -> 406714.2857
F12: Profit Rate | G12: 1 | H12: 1 | I12: 1 | J12: 1 | K12: 1 | L12: 1 | M12: 1 | N12: 1 | O12: 1 | P12: 1 | Q12: 1 | R12: 1 | S12: 0.85
F13: Profit | G13: =G11*G12 -> 34542.85714 | H13: =H11*H12 -> 31200 | I13: 34542.85714 | J13: 33428.57143 | K13: 34542.85714 | L13: 33428.57143 | M13: 34542.85714 | N13: 34542.85714 | O13: 33428.57143 | P13: 34542.85714 | Q13: 33428.57143 | R13: 34542.85714 | S13: 345707.1429
A14: Spa Service & Program | B14: Main Package[Admission w/ Public Outdoor bath+ indoor private Bath (Sulfur Soaking)+ 60 Min massage | C14: Ave. | D14: =((D16*4)+(D17*3))/7 -> 132.8571429 | E14: 0.5 | F14: Monthly Pax | G14: =G6*G4*$E$14 -> 3094.575 | H14: =H6*H4*$E$14 -> 2795.1 | I14: 3404.0325 | J14: 3593.7 | K14: 3094.575 | L14: 2994.75 | M14: 4641.8625 | N14: 5260.7775 | O14: 4492.125 | P14: 3713.49 | Q14: 2994.75 | R14: 3094.575 | S14: =SUM(G14:R14) -> 43174.3125
F15: Sales | G15: =$D$14*G14 -> 411136.3929 | H15: =$D$14*H14 -> 371349 | I15: 452250.0321 | J15: 477448.7143 | K15: 411136.3929 | L15: 397873.9286 | M15: 616704.5893 | N15: 698931.8679 | O15: 596810.8929 | P15: 493363.6714 | Q15: 397873.9286 | R15: 411136.3929 | S15: =SUM(G15:R15) -> 5736015.804
C16: week | D16: 120 | F16: Profit Rate | G16: 1 | H16: =G16 -> 1 | I16: =H16 -> 1 | J16: 1 | K16: 1 | L16: 1 | M16: 1 | N16: 1 | O16: 1 | P16: 1 | Q16: 1 | R16: 1 | S16: 1
C17: weekend | D17: 150 | F17: Profit | G17: =G15*G16 -> 411136.3929 | H17: =H15*H16 -> 371349 | I17: 452250.0321 | J17: 477448.7143 | K17: 411136.3929 | L17: 397873.9286 | M17: 616704.5893 | N17: 698931.8679 | O17: 596810.8929 | P17: 493363.6714 | Q17: 397873.9286 | R17: 411136.3929 | S17: 5736015.804
A22: Spa Service & Program | B22: Budget Package[ Addmission+public outdoorbath | D22: =((D24*4)+(D25*3))/7 -> 58.57142857 | E22: =1-E14 -> 0.5 | F22: Monthly Pax | G22: =G4*G6*$E$22 -> 3094.575 | H22: 2795.1 | I22: 3404.0325 | J22: 3593.7 | K22: 3094.575 | L22: 2994.75 | M22: 4641.8625 | N22: 5260.7775 | O22: 4492.125 | P22: 3713.49 | Q22: 2994.75 | R22: 3094.575 | S22: =SUM(G22:R22) -> 43174.3125
F23: Sales | G23: =$D$22*G22 -> 181253.6786 | H23: 163713 | I23: 199379.0464 | J23: 210488.1429 | K23: 181253.6786 | L23: 175406.7857 | M23: 271880.5179 | N23: 308131.2536 | O23: 263110.1786 | P23: 217504.4143 | Q23: 175406.7857 | R23: 181253.6786 | S23: =SUM(G23:R23) -> 2528781.161
C24: week | D24: 50 | F24: Profit Rate | G24: 1 | H24: 1 | I24: 1 | J24: 1 | K24: 1 | L24: 1 | M24: 1 | N24: 1 | O24: 1 | P24: 1 | Q24: 1 | R24: 1 | S24: 1
C25: weekend | D25: 70 | F25: Profit | G25: =G23*G24 -> 181253.6786 | H25: 163713 | I25: 199379.0464 | J25: 210488.1429 | K25: 181253.6786 | L25: 175406.7857 | M25: =M23*M24 -> 271880.5179 | N25: =N23*N24 -> 308131.2536 | O25: 263110.1786 | P25: 217504.4143 | Q25: 175406.7857 | R25: 181253.6786 | S25: 2528781.161
A26: Spa Service & Program | B26: Nail/Foot | F26: Monthly Pax | G26: 0 | H26: 0 | I26: 0 | J26: 0 | K26: 0 | L26: 0 | M26: 0 | N26: 0 | O26: 0 | P26: 0 | Q26: 0 | R26: 0 | S26: =SUM(G26:R26) -> 0
F27: Sales | G27: =$D$26*G26 -> 0 | H27: 0 | I27: 0 | J27: 0 | K27: 0 | L27: 0 | M27: 0 | N27: 0 | O27: 0 | P27: 0 | Q27: 0 | R27: 0 | S27: =SUM(G27:R27) -> 0
F28: Profit Rate | G28: 0.95 | H28: 0.95 | I28: 0.95 | J28: 0.95 | K28: 0.95 | L28: 0.95 | M28: 0.95 | N28: 0.95 | O28: 0.95 | P28: 0.95 | Q28: 0.95 | R28: 0.95 | S28: 0.95
F29: Profit | G29: =G27*G28 -> 0 | H29: 0 | I29: 0 | J29: 0 | K29: 0 | L29: 0 | M29: =M27*M28 -> 0 | N29: =N27*N28 -> 0 | O29: 0 | P29: 0 | Q29: 0 | R29: 0 | S29: 0
A30: Food & Beverage | B30: Café | D30: 15 | E30: 0.6 | F30: Monthly Pax | G30: =G4*G6*$E$30 -> 3713.49 | H30: 3354.12 | I30: 4084.839 | J30: 4312.44 | K30: 3713.49 | L30: 3593.7 | M30: 5570.235 | N30: 6312.933 | O30: 5390.55 | P30: 4456.188 | Q30: 3593.7 | R30: 3713.49 | S30: =SUM(G30:R30) -> 51809.175
F31: Sales | G31: =$D$30*G30 -> 55702.35 | H31: 50311.8 | I31: 61272.585 | J31: 64686.6 | K31: 55702.35 | L31: 53905.5 | M31: 83553.525 | N31: 94693.995 | O31: 80858.25 | P31: 66842.82 | Q31: 53905.5 | R31: 55702.35 | S31: =SUM(G31:R31) -> 777137.625
F32: Profit Rate | G32: 0.8 | H32: 0.8 | I32: 0.8 | J32: 0.8 | K32: 0.8 | L32: 0.8 | M32: 0.8 | N32: 0.8 | O32: 0.8 | P32: 0.8 | Q32: 0.8 | R32: 0.8 | S32: 0.8
F33: Profit | G33: =G31*G32 -> 44561.88 | H33: 40249.44 | I33: 49018.068 | J33: 51749.28 | K33: 44561.88 | L33: 43124.4 | M33: =M31*M32 -> 66842.82 | N33: =N31*N32 -> 75755.196 | O33: 64686.6 | P33: 53474.256 | Q33: 43124.4 | R33: 44561.88 | S33: 621710.1
A34: Food & Beverage | B34: Restaurant rent income | D34: 9900 | F34: Monthly Pax | G34: 1 | H34: 1 | I34: 1 | J34: 1 | K34: 1 | L34: 1 | M34: 1 | N34: 1 | O34: 1 | P34: 1 | Q34: 1 | R34: 1 | S34: 12
F35: Sales | G35: 9900 | H35: 9900 | I35: 9900 | J35: 9900 | K35: 9900 | L35: 9900 | M35: 9900 | N35: 9900 | O35: 9900 | P35: 9900 | Q35: 9900 | R35: 9900 | S35: =9900*12 -> 118800
F36: Profit Rate | G36: 1 | H36: 1 | I36: 1 | J36: 1 | K36: 1 | L36: 1 | M36: 1 | N36: 1 | O36: 1 | P36: 1 | Q36: 1 | R36: 1 | S36: 1
F37: Profit | G37: =G35*G36 -> 9900 | H37: 9900 | I37: 9900 | J37: 9900 | K37: 9900 | L37: 9900 | M37: =M35*M36 -> 9900 | N37: =N35*N36 -> 9900 | O37: 9900 | P37: 9900 | Q37: 9900 | R37: 9900 | S37: 118800
B43: Total Sales Revenue | G43: =G11+G15+G19+G23+G27+G31+G35+G39 -> 692535.2786 | H43: =H11+H15+H19+H23+H27+H31+H35+H39 -> 626473.8 | I43: 757344.5207 | J43: 795952.0286 | K43: 692535.2786 | L43: 670514.7857 | M43: 1016581.489 | N43: 1146199.974 | O43: 984107.8929 | P43: 822153.7629 | Q43: 670514.7857 | R43: 692535.2786 | S43: =SUM(G43:R43) -> 9567448.875
S44: =SUM(G43:R43) -> 9567448.875
B45: COGS
A46: Cost of Good Sold | B46: Food &Beberage COGS | G46: =(G11*(1-G12))+(G15*(1-G16))+(G19*(1-G20))+(G23*(1-G24))+(G31*(1-G32))+(G35*(1-G36)) -> 11140.47 | H46: =(H11*(1-H12))+(H15*(1-H16))+(H19*(1-H20))+(H23*(1-H24))+(H31*(1-H32))+(H35*(1-H36)) -> 10062.36 | I46: 12254.517 | J46: 12937.32 | K46: 11140.47 | L46: 10781.1 | M46: 16710.705 | N46: 18938.799 | O46: 16171.65 | P46: 13368.564 | Q46: 10781.1 | R46: =(R11*(1-R12))+(R15*(1-R16))+(R19*(1-R20))+(R23*(1-R24))+(R31*(1-R32))+(R35*(1-R36)) -> 11140.47 | S46: =SUM(G46:R46) -> 155427.525
B47: Gift supply COGS | G47: =G39*(1-G40) -> 0 | H47: =H39*(1-H40) -> 0 | I47: 0 | J47: 0 | K47: 0 | L47: 0 | M47: 0 | N47: 0 | O47: 0 | P47: 0 | Q47: 0 | R47: 0 | S47: =SUM(G47:R47) -> 0
A49: Total Gross Profit | B49: Total Gross Profit | G49: =G43-G46-G47 -> 681394.8086 | H49: =H43-H46-H47 -> 616411.44 | I49: 745090.0037 | J49: 783014.7086 | K49: 681394.8086 | L49: 659733.6857 | M49: 999870.7843 | N49: 1127261.175 | O49: 967936.2429 | P49: 808785.1989 | Q49: 659733.6857 | R49: 681394.8086 | S49: 9412021.35
B50: Expense
A51: Credit Card Fee/Bank/Other/Misc. | B51: Credit Card Fee/Bank/Other/Misc. | G51: =G43*0.02 -> 13850.70557 | H51: 12529.476 | I51: 15146.89041 | J51: 15919.04057 | K51: 13850.70557 | L51: 13410.29571 | M51: 20331.62979 | N51: 22923.99947 | O51: 19682.15786 | P51: 16443.07526 | Q51: 13410.29571 | R51: 13850.70557 | S51: 191348.9775
A52: Property Tax - Under Pilot Program | B52: Property Tax - Under Pilot Program | G52: =66752/12 -> 5562.666667 | H52: =66752/12 -> 5562.666667 | I52: 5562.666667 | J52: 5562.666667 | K52: 5562.666667 | L52: 5562.666667 | M52: 5562.666667 | N52: 5562.666667 | O52: 5562.666667 | P52: 5562.666667 | Q52: 5562.666667 | R52: 5562.666667 | S52: =SUM(G52:R52) -> 66752
A53: Payroll | B53: Payroll | G53: ='payroll.tax Y5'!J37 -> 205359.7809 | H53: =$G$53 -> 205359.7809 | I53: =$G$53 -> 205359.7809 | J53: 205359.7809 | K53: 205359.7809 | L53: 205359.7809 | M53: 205359.7809 | N53: 205359.7809 | O53: 205359.7809 | P53: 205359.7809 | Q53: 205359.7809 | R53: 205359.7809 | S53: 2464317.371
A54: Payroll Tax | B54: Payroll Tax | G54: ='payroll.tax Y5'!M37 -> 14609.74698 | H54: =G54 -> 14609.74698 | I54: =H54 -> 14609.74698 | J54: 14609.74698 | K54: 14609.74698 | L54: 14609.74698 | M54: 14609.74698 | N54: 14609.74698 | O54: 14609.74698 | P54: 14609.74698 | Q54: 14609.74698 | R54: 14609.74698 | S54: 175316.9638
A55: Sales Tax | B55: Sales Tax | G55: =G43*0.08 -> 55402.82229 | H55: 50117.904 | I55: 60587.56166 | J55: 63676.16229 | K55: 55402.82229 | L55: 53641.18286 | M55: 81326.51914 | N55: 91695.99789 | O55: 78728.63143 | P55: 65772.30103 | Q55: 53641.18286 | R55: 55402.82229 | S55: 765395.91
A56: Gas | B56: Gas | G56: =143.33*G4 -> 4443.23 | H56: =143.33*H4 -> 4013.24 | I56: 4443.23 | J56: 4299.9 | K56: 4443.23 | L56: 4299.9 | M56: 4443.23 | N56: 4443.23 | O56: 4299.9 | P56: 4443.23 | Q56: 4299.9 | R56: 4443.23 | S56: 52315.45
A57: Electricity | B57: Electricity | G57: =15000*0.352564 -> 5288.46 | H57: =15000*0.352564 -> 5288.46 | I57: 5288.46 | J57: 5288.46 | K57: 5288.46 | L57: 5288.46 | M57: 5288.46 | N57: 5288.46 | O57: 5288.46 | P57: 5288.46 | Q57: 5288.46 | R57: 5288.46 | S57: 63461.52
A58: Water & Sewer | B58: Water & Sewer | G58: =(($G$4*G6)*6.6043*0.0229)+($G$4*61.01) -> 2827.347577 | H58: 2827.347577 | I58: 2920.951334 | J58: 3014.555092 | K58: 2827.347577 | L58: 2827.347577 | M58: 3295.366365 | N58: 3482.57388 | O58: 3295.366365 | P58: 3014.555092 | Q58: 2827.347577 | R58: 2827.347577 | S58: 35987.45359
A59: Phone,Internet,Cable | B59: Phone,Internet,Cable | G59: 1500 | H59: 1500 | I59: 1500 | J59: 1500 | K59: 1500 | L59: 1500 | M59: 1500 | N59: 1500 | O59: 1500 | P59: 1500 | Q59: 1500 | R59: 1500 | S59: 18000
A60: Laundry & Sanitation | B60: Laundry & Sanitation | G60: =($G$4*G6*1.4*0.37)+(71.42*$G$4) -> 5419.9997 | H60: =($G$4*H6*1.4*0.37)+(71.42*$G$4) -> 5419.9997 | I60: 5740.59767 | J60: 6061.19564 | K60: 5419.9997 | L60: 5419.9997 | M60: 7022.98955 | N60: 7664.18549 | O60: 7022.98955 | P60: 6061.19564 | Q60: 5419.9997 | R60: 5419.9997 | S60: 72093.15174
A61: Bath house Supplies | B61: Bath house Supplies | G61: =G4*G6*0.5 -> 3094.575 | H61: 2795.1 | I61: 3404.0325 | J61: 3593.7 | K61: 3094.575 | L61: 2994.75 | M61: 4641.8625 | N61: 5260.7775 | O61: 4492.125 | P61: 3713.49 | Q61: 2994.75 | R61: 3094.575 | S61: 43174.3125
A63: Advertising(Media/ SN/Internet) | B63: Advertising(Media/ SN/Internet) | G63: 12000 | H63: =G63 -> 12000 | I63: =H63 -> 12000 | J63: 12000 | K63: 12000 | L63: 12000 | M63: 12000 | N63: 12000 | O63: 12000 | P63: 12000 | Q63: 12000 | R63: 12000 | S63: 144000
A64: Litigation,Insurance&Workers Comp | B64: Litigation,Insurance&Workers Comp | G64: 7904 | H64: 7904 | I64: 7904 | J64: 7904 | K64: 7904 | L64: 7904 | M64: 7904 | N64: 7904 | O64: 7904 | P64: 7904 | Q64: 7904 | R64: 7904 | S64: 94848
A65: Depreciation for properties | B65: Depreciation | G65: 5000 | H65: 5000 | I65: 5000 | J65: 5000 | K65: 5000 | L65: 5000 | M65: 5000 | N65: 5000 | O65: 5000 | P65: 5000 | Q65: 5000 | R65: 5000 | S65: 60000
A66: Loan Principal&Interests | B66: Loan Principal&Interests | G66: 31001.24 | H66: 31001.24 | I66: 31001.24 | J66: 31001.24 | K66: 31001.24 | L66: 31001.24 | M66: 31001.24 | N66: 31001.24 | O66: 31001.24 | P66: 31001.24 | Q66: 31001.24 | R66: 31001.24 | S66: 372014.88
A67: Professional Fee | B67: Professional Fee | G67: 4000 | H67: 4000 | I67: 4000 | J67: 4000 | K67: 4000 | L67: 4000 | M67: 4000 | N67: 4000 | O67: 4000 | P67: 4000 | Q67: 4000 | R67: 4000 | S67: 48000
A68: Pest Control | B68: Pest Control | G68: 2083 | H68: 2083 | I68: 2083 | J68: 2083 | K68: 2083 | L68: 2083 | M68: 2083 | N68: 2083 | O68: 2083 | P68: 2083 | Q68: 2083 | R68: 2083 | S68: =SUM(G68:R68) -> 24996
A69: Licenses and permits | B69: Licenses and permits | G69: 833 | H69: 833 | I69: 833 | J69: 833 | K69: 833 | L69: 833 | M69: 833 | N69: 833 | O69: 833 | P69: 833 | Q69: 833 | R69: 833 | S69: 9996
A70: Postage and delivery | B70: Postage and delivery | G70: 667 | H70: 667 | I70: 667 | J70: 667 | K70: 667 | L70: 667 | M70: 667 | N70: 667 | O70: 667 | P70: 667 | Q70: 667 | R70: 667 | S70: 8004
A71: Printing (brouchure,sign) | B71: Printing (brouchure,sign) | G71: 2000 | H71: 2000 | I71: 2000 | J71: 2000 | K71: 2000 | L71: 2000 | M71: 2000 | N71: 2000 | O71: 2000 | P71: 2000 | Q71: 2000 | R71: 2000 | S71: 24000
A72: Shuttle service(2 buses) | B72: Bus insurance | G72: 8400 | H72: 8400 | I72: 8400 | J72: 8400 | K72: 8400 | L72: 8400 | M72: 8400 | N72: 8400 | O72: 8400 | P72: 8400 | Q72: 8400 | R72: 8400 | S72: 100800
A73: Shuttle service(2 buses) | B73: Bus maintenance | G73: 11700 | H73: 11700 | I73: 11700 | J73: 11700 | K73: 11700 | L73: 11700 | M73: 11700 | N73: 11700 | O73: 11700 | P73: 11700 | Q73: 11700 | R73: 11700 | S73: 140400
A74: Shuttle service(2 buses) | B74: Bus finance | G74: 21183.28 | H74: 21430 | I74: 21430 | J74: 21430 | K74: 21430 | L74: 21430 | M74: 21430 | N74: 21430 | O74: 21430 | P74: 21430 | Q74: 21430 | R74: 21430 | S74: 256913.28
A75: Dues & Subscription | B75: Dues & Subscription | G75: 208.3 | H75: 208.3 | I75: 208.3 | J75: 208.3 | K75: 208.3 | L75: 208.3 | M75: 208.3 | N75: 208.3 | O75: 208.3 | P75: 208.3 | Q75: 208.3 | R75: 208.3 | S75: 2499.6
A76: Sub-Total Expense | B76: Sub-Total Expense | G76: =SUM(G51:G75) -> 424339.1547 | H76: =SUM(H51:H75) -> 417250.2619 | I76: 431790.4582 | J76: 436111.7482 | K76: 424585.8747 | L76: 422140.6704 | M76: 460608.7919 | N76: 475017.9588 | O76: 457068.3648 | P76: 438995.0416 | Q76: 422140.6704 | R76: 424585.8747 | S76: 5234634.87
A77: Contingency | B77: Contingency | G77: =G76*0.03 -> 12730.17464 | H77: =H76*0.03 -> 12517.50786 | I77: 12953.71374 | J77: 13083.35245 | K77: 12737.57624 | L77: 12664.22011 | M77: 13818.26376 | N77: 14250.53876 | O77: 13712.05094 | P77: 13169.85125 | Q77: 12664.22011 | R77: 12737.57624 | S77: =SUM(G77:R77) -> 157039.0461
A78: Total Expense | B78: Total Expense | G78: =G76+G77 -> 437069.3294 | H78: =H76+H77 -> 429767.7697 | I78: 444744.1719 | J78: 449195.1006 | K78: 437323.451 | L78: 434804.8905 | M78: 474427.0557 | N78: 489268.4976 | O78: 470780.4157 | P78: 452164.8929 | Q78: 434804.8905 | R78: 437323.451 | S78: =SUM(G78:R78) -> 5391673.917
A80: Total Final Net Profit | B80: Total Final Profit | G80: =G49-G78 -> 244325.4792 | H80: =H49-H78 -> 186643.6703 | I80: 300345.8318 | J80: 333819.6079 | K80: 244071.3576 | L80: 224928.7952 | M80: 525443.7286 | N80: 637992.677 | O80: 497155.8271 | P80: 356620.306 | Q80: 224928.7952 | R80: 244071.3576 | S80: 4020347.433
S81: =S80/S83 -> 1.170009535
R82: Growth | S82: =(S80/S83)-1 -> 0.1700095351 | T82: yearly
R83: 4th Y | S83: ='F.P.YEAR 4'!S80 -> 3436166.384

Sheet payroll.tax Y1
B2: Payroll & Payroll Tax (Year 1)
G3: Min.Pay | H3: 15 | K3: Fed. Tax | M3: State UI Base | N3: 11600
G4: Year 1 | K4: 0.062 | L4: 0.0145 | M4: ='Fed.NYS.Tax-UI-BASE'!H11 -> 0.02575
E5: Year 1 Rate | F5: Hour | G5: Day 365 | H5: Persons | I5: Yearly Wage | J5: Wage Per Person | K5: SS Tax | L5: Med tax | M5: UI N.Employer | N5: NYS U.I
B6: General Manager | D6: General Manager | E6: 180000 | H6: 1 | I6: =E6*H6 -> 180000 | J6: =I6/H6 -> 180000 | K6: =I6*K4 -> 11160 | L6: =I6*L$4 -> 2610 | M6: =$N$3*H6*M$4 -> 298.7 | N6: =11400*H6*N$4 -> 0
I7: =E7*F7*G7*H7 -> 0 | K7: =I7*K$4 -> 0 | L7: 0 | M7: =$N$3*H7*M$4 -> 0 | N7: =11400*H7*N$4 -> 0
B8: Accounting | D8: Senior Accountant | E8: 80000 | H8: 1 | I8: =E8*H8 -> 80000 | J8: =I8/H8 -> 80000 | K8: 4960 | L8: 1160 | M8: 298.7 | N8: =11400*H8*N$4 -> 0
D9: Assistant accountants | E9: 35000 | H9: 1 | I9: =E9*H9 -> 35000 | J9: 35000 | K9: 2170 | L9: 507.5 | M9: 298.7 | N9: =11400*H9*N$4 -> 0
B10: Customer Satisfaction | D10: Customer Service Manager | E10: 80000 | H10: 1 | I10: =E10*H10 -> 80000 | J10: 80000 | K10: 4960 | L10: 1160 | M10: 298.7 | N10: =11400*H10*N$4 -> 0
D11: Reception_Entrance Room | E11: 20 | F11: 8 | G11: 365 | H11: 4 | I11: =E11*F11*G11*H11 -> 233600 | J11: 58400 | K11: 14483.2 | L11: 3387.2 | M11: 1194.8 | N11: 0
D12: Reception_Gift Shop | E12: 20 | F12: 8 | G12: 365 | H12: 0 | I12: 0 | K12: 0 | L12: 0 | M12: 0 | N12: 0
D13: Reception_Customer Service | E13: 20 | F13: 8 | G13: 365 | H13: 0 | I13: 0 | K13: 0 | L13: 0 | M13: 0 | N13: 0
I14: 0 | M14: 0 | N14: 0
B15: Management | D15: Maintenance Manager | E15: 120000 | H15: 1 | I15: =E15*H15 -> 120000 | J15: =I15/H15 -> 120000 | K15: =I15*K$4 -> 7440 | L15: =I15*L$4 -> 1740 | M15: 298.7 | N15: 0
D16: Building & Pool Maintenance | E16: 20 | F16: 12 | G16: 365 | H16: 3 | I16: 262800 | J16: =I16/H16 -> 87600 | K16: 16293.6 | L16: =I16*L$4 -> 3810.6 | M16: 896.1 | N16: 0
D17: House Keeper(Service Personal) | E17: 20 | F17: 8 | G17: 365 | H17: 2 | I17: =E17*F17*G17*H17 -> 116800 | J17: =I17/H17 -> 58400 | K17: 7241.6 | L17: =I17*L$4 -> 1693.6 | M17: 597.4 | N17: =11400*H17*N$4 -> 0
D18: Security Manager | E18: 20 | F18: 8 | G18: 365 | H18: 0 | I18: 0 | J18: =I18/H18 ->  | K18: 0 | L18: =I18*L$4 -> 0 | M18: 0 | N18: 0
E19: 20 | I19: 0 | K19: 0 | L19: 0 | M19: 0 | N19: 0
D20: IT | E20: 80000 | H20: 1 | I20: =E20*H20 -> 80000 | J20: =I20/H20 -> 80000 | K20: 4960 | L20: 1160 | M20: 298.7 | N20: 0
B23: Food | C23: Restaurant & Café | D23: Food & Beverage | E23: 20 | F23: 8 | G23: 365 | H23: 3 | I23: 175200 | L23: 2540.4 | M23: 896.1 | N23: 0
D24: Restaurant Cook | E24: 0 | H24: 0 | I24: =E24*H24 -> 0 | J24: =I24/H24 ->  | K24: =I24*K$4 -> 0 | L24: 0 | M24: 0 | N24: =11400*H24*N$4 -> 0
D25: Restaurant serve | E25: 0 | F25: 0 | G25: 0 | H25: 0 | I25: 0 | J25: =I25/H25 ->  | K25: =I25*K$4 -> 0 | L25: 0 | M25: 0 | N25: 0
D26: Restaurant Cashier | E26: 0 | F26: 0 | G26: 0 | H26: 0 | I26: 0 | J26: =I26/H26 ->  | K26: =I26*K$4 -> 0 | L26: 0 | M26: 0 | N26: 0
I27: 0 | L27: 0 | M27: 0 | N27: 0
B28: Shuttle bus | D28: Driver | E28: 80000 | F28: 0 | G28: 0 | H28: 0 | I28: =E28*H28 -> 0 | L28: =I28*L$4 -> 0 | M28: =$N$3*H28*M$4 -> 0 | N28: =11400*H28*N$4 -> 0
I31: 0 | L31: 0 | M31: 0 | N31: 0
B32: Spa | D32: Spa Service Manager | E32: 80000 | H32: 1 | I32: =E32*H32 -> 80000 | J32: =I32/H32 -> 80000 | K32: =I32*K$4 -> 4960 | L32: 1160 | M32: 298.7 | N32: 0
B33: Massage Program | D33: Spa Employees | E33: 20 | F33: 8 | G33: 365 | H33: 10 | I33: 584000 | J33: =I33/H33 -> 58400 | K33: =I33*K$4 -> 36208 | L33: 8468 | M33: 2987 | N33: 0
J34: Sub Tax | K34: =SUM(K6:K33) -> 114836.4 | L34: =SUM(L6:L33) -> 29397.3 | M34: =SUM(M6:M33) -> 8662.3 | N34: =SUM(N6:N33) -> 0
B36: Total | H36: =SUM(H6:H33) -> 29 | I36: =SUM(I6:I33) -> 2027400 | J36: Total Tax | K36: =K34+L34+M34+N34 -> 152896
G37: AVG | H37: MONTHLY PAYMENT | I37: =I36/12 -> 168950 | K37: MONTHLY PAYROLL-TAX | L37: =K36/12 -> 12741.33333
G38: AVG | H38: Year/Person | I38: =I36/H36 -> 69910.34483

Sheet payroll.tax Y2
B2: Payroll & Payroll Tax (Year 2)
L3: Fed. Tax | N3: State UI Base | O3: ='Fed.NYS.Tax-UI-BASE'!B13 -> 12000
F4: +5% | L4: 0.062 | M4: 0.0145 | O4: ='Fed.NYS.Tax-UI-BASE'!H12 -> 0.006
E5: Year 1 Rate | F5: Year 2 Rate | G5: Hour | H5: Day 365 | I5: Persons | J5: Yearly Wage | K5: Wage Per Person | L5: SS Tax | M5: Med tax | N5: UI N.Employer | O5: NYS U.I
B6: General Manager | D6: General Manager | E6: ='payroll.tax Y1'!E6 -> 180000 | F6: =E6*(1+$F$4) -> 189000 | I6: ='payroll.tax Y1'!H6 -> 1 | J6: =F6*I6 -> 189000 | K6: =J6/I6 -> 189000 | L6: =J6*L4 -> 11718 | M6: =J6*M$4 -> 2740.5 | N6: =11400*I6*N$4 -> 0 | O6: =$O$3*I6*O$4 -> 72
E7: ='payroll.tax Y1'!E7 -> 0 | F7: =E7*(1+$F$4) -> 0 | I7: ='payroll.tax Y1'!H7 -> 0 | J7: =F7*G7*H7*I7 -> 0 | L7: =J7*L$4 -> 0 | M7: 0 | N7: 0 | O7: =$O$3*I7*O$4 -> 0
B8: Accounting | D8: CFO | E8: ='payroll.tax Y1'!E8 -> 80000 | F8: 84000 | I8: ='payroll.tax Y1'!H8 -> 1 | J8: =F8*I8 -> 84000 | K8: =J8/I8 -> 84000 | L8: 5208 | M8: 1218 | N8: 0 | O8: 72
D9: Assistant accountants | E9: ='payroll.tax Y1'!E9 -> 35000 | F9: 36750 | I9: ='payroll.tax Y1'!H9 -> 1 | J9: =F9*I9 -> 36750 | K9: =J9/I9 -> 36750 | L9: 2278.5 | M9: 532.875 | N9: 0 | O9: 72
B10: Customer Satisfaction | D10: Customer Service Manager | E10: ='payroll.tax Y1'!E10 -> 80000 | F10: 84000 | I10: ='payroll.tax Y1'!H10 -> 1 | J10: =F10*I10 -> 84000 | K10: =J10/I10 -> 84000 | L10: 5208 | M10: 1218 | N10: 0 | O10: 72
D11: Reception_Entrance Room | E11: ='payroll.tax Y1'!E11 -> 20 | F11: 21 | G11: 8 | H11: 365 | I11: ='payroll.tax Y1'!H11 -> 4 | J11: =F11*G11*H11*I11 -> 245280 | K11: =J11/I11 -> 61320 | L11: 15207.36 | M11: 3556.56 | N11: 0 | O11: 288
D12: Reception_Gift Shop | E12: ='payroll.tax Y1'!E12 -> 20 | F12: 21 | G12: 8 | H12: 365 | I12: ='payroll.tax Y1'!H12 -> 0 | J12: 0 | L12: 0 | M12: 0 | N12: =11400*I12*N$4 -> 0 | O12: 0
D13: Reception_Customer Service | E13: ='payroll.tax Y1'!E13 -> 20 | F13: 21 | G13: 8 | H13: 365 | I13: ='payroll.tax Y1'!H13 -> 0 | J13: 0 | L13: 0 | M13: 0 | N13: 0 | O13: 0
E14: ='payroll.tax Y1'!E14 -> 0 | F14: 0 | I14: ='payroll.tax Y1'!H14 -> 0 | J14: 0 | N14: 0 | O14: 0
B15: Management | D15: Maintenance Manager | E15: ='payroll.tax Y1'!E15 -> 120000 | F15: 126000 | I15: ='payroll.tax Y1'!H15 -> 1 | J15: =F15*I15 -> 126000 | K15: 126000 | L15: =J15*L$4 -> 7812 | M15: =J15*M$4 -> 1827 | N15: 0 | O15: 72
D16: Building & Pool Maintenance | E16: ='payroll.tax Y1'!E16 -> 20 | F16: 21 | G16: 12 | H16: 365 | I16: ='payroll.tax Y1'!H16 -> 3 | J16: 275940 | K16: 91980 | L16: 17108.28 | M16: 4001.13 | N16: 0 | O16: 216
D17: House Keeper(Service Personal) | E17: ='payroll.tax Y1'!E17 -> 20 | F17: 21 | G17: 8 | H17: 365 | I17: ='payroll.tax Y1'!H17 -> 2 | J17: 122640 | K17: 61320 | L17: 7603.68 | M17: 1778.28 | N17: 0 | O17: 144
D18: Security Manager | E18: ='payroll.tax Y1'!E18 -> 20 | F18: 21 | G18: 8 | H18: 365 | I18: ='payroll.tax Y1'!H18 -> 0 | J18: 0 | L18: 0 | M18: 0 | N18: 0 | O18: 0
E19: ='payroll.tax Y1'!E19 -> 20 | F19: 21 | I19: ='payroll.tax Y1'!H19 -> 0 | L19: 0 | M19: 0 | N19: 0 | O19: 0
D20: IT | E20: ='payroll.tax Y1'!E20 -> 80000 | F20: 84000 | I20: ='payroll.tax Y1'!H20 -> 1 | J20: =F20*I20 -> 84000 | K20: =J20/I20 -> 84000 | L20: 5208 | M20: =J20*M$4 -> 1218 | N20: =11400*I20*N$4 -> 0 | O20: 72
E21: ='payroll.tax Y1'!E21 -> 0 | F21: 0 | I21: ='payroll.tax Y1'!H21 -> 0 | L21: 0 | M21: =J21*M$4 -> 0 | N21: =11400*I21*N$4 -> 0 | O21: 0
E22: ='payroll.tax Y1'!E22 -> 0 | F22: 0 | I22: ='payroll.tax Y1'!H22 -> 0 | L22: 0 | M22: =J22*M$4 -> 0 | N22: =11400*I22*N$4 -> 0 | O22: 0
B23: Food | C23: Restaurant & Café | D23: Food & Beverage | E23: ='payroll.tax Y1'!E23 -> 20 | F23: 21 | G23: 8 | H23: 365 | I23: ='payroll.tax Y1'!H23 -> 3 | J23: 183960 | M23: 2667.42 | N23: 0 | O23: 216
D24: Restaurant Cook | E24: ='payroll.tax Y1'!E24 -> 0 | F24: 0 | G24: 0 | H24: 0 | I24: ='payroll.tax Y1'!H24 -> 0 | J24: =F24*I24 -> 0 | L24: =J24*L$4 -> 0 | M24: 0 | N24: 0 | O24: 0
D25: Restaurant Cook Assistant | E25: ='payroll.tax Y1'!E25 -> 0 | F25: 0 | G25: 0 | H25: 0 | I25: ='payroll.tax Y1'!H25 -> 0 | J25: 0 | L25: =J25*L$4 -> 0 | M25: 0 | N25: 0 | O25: 0
D26: Restaurant Cashier | E26: ='payroll.tax Y1'!E26 -> 0 | F26: 0 | G26: 0 | H26: 0 | I26: ='payroll.tax Y1'!H26 -> 0 | J26: 0 | L26: =J26*L$4 -> 0 | M26: 0 | N26: 0 | O26: 0
E27: ='payroll.tax Y1'!E27 -> 0 | F27: 0 | I27: ='payroll.tax Y1'!H27 -> 0 | J27: 0 | M27: 0 | N27: 0 | O27: 0
B28: Shuttle bus | D28: Driver | E28: ='payroll.tax Y1'!E28 -> 80000 | F28: 84000 | H28: 0 | I28: ='payroll.tax Y1'!H28 -> 0 | J28: =F28*I28 -> 0 | M28: 0 | N28: 0 | O28: 0
E29: ='payroll.tax Y1'!E29 -> 0 | F29: 0 | I29: ='payroll.tax Y1'!H29 -> 0 | M29: 0 | N29: 0 | O29: 0
E30: ='payroll.tax Y1'!E30 -> 0 | F30: 0 | I30: ='payroll.tax Y1'!H30 -> 0 | M30: 0 | N30: 0 | O30: 0
E31: ='payroll.tax Y1'!E31 -> 0 | F31: 0 | I31: ='payroll.tax Y1'!H31 -> 0 | J31: 0 | M31: 0 | N31: 0 | O31: 0
B32: Spa | D32: Spa Service Manager | E32: ='payroll.tax Y1'!E32 -> 80000 | F32: 84000 | I32: ='payroll.tax Y1'!H32 -> 1 | J32: =F32*I32 -> 84000 | K32: =J32/I32 -> 84000 | L32: =J32*L$4 -> 5208 | M32: 1218 | N32: 0 | O32: 72
B33: Massage Program (with Body Scrub) | D33: Spa Employees | E33: ='payroll.tax Y1'!E33 -> 20 | F33: 21 | G33: 8 | H33: 365 | I33: ='payroll.tax Y1'!H33 -> 10 | J33: 613200 | K33: 61320 | L33: =J33*L$4 -> 38018.4 | M33: 8891.4 | N33: 0 | O33: 720
K34: Sub Tax | L34: =SUM(L6:L33) -> 120578.22 | M34: =SUM(M6:M33) -> 30867.165 | N34: =SUM(N6:N33) -> 0 | O34: =SUM(O6:O33) -> 2088
B36: Total | I36: =SUM(I6:I33) -> 29 | J36: =SUM(J6:J33) -> 2128770 | K36: Total Tax | L36: =L34+M34+N34+O34 -> 153533.385
H37: AVG | I37: MONTHLY PAYMENT | J37: =J36/12 -> 177397.5 | L37: MONTHLY PAYROLL-TAX | M37: =L36/12 -> 12794.44875
H38: AVG | I38: Year/Person | J38: =J36/I36 -> 73405.86207

Sheet payroll.tax Y3
B2: Payroll & Payroll Tax (Year 3)
L3: Fed. Tax | N3: State UI Base | O3: ='Fed.NYS.Tax-UI-BASE'!B14 -> 0
F4: +5% | L4: 0.062 | M4: 0.0145 | O4: ='Fed.NYS.Tax-UI-BASE'!H13 -> 0.006
E5: Year 2 Rate | F5: Year 3 Rate | G5: Hour | H5: Day 365 | I5: Persons | J5: Yearly Wage | K5: Wage Per Person | L5: SS Tax | M5: Med tax | N5: UI N.Employer | O5: NYS U.I
B6: General Manager | D6: General Manager | E6: ='payroll.tax Y2'!F6 -> 189000 | F6: =E6*(1+$F$4) -> 198450 | I6: ='payroll.tax Y2'!I6 -> 1 | J6: =F6*I6 -> 198450 | K6: =J6/I6 -> 198450 | L6: =J6*L4 -> 12303.9 | M6: =J6*M$4 -> 2877.525 | N6: =11400*I6*N$4 -> 0 | O6: =$O$3*I6*O$4 -> 0
E7: ='payroll.tax Y2'!F7 -> 0 | F7: =E7*(1+$F$4) -> 0 | I7: ='payroll.tax Y2'!I7 -> 0 | J7: =F7*G7*H7*I7 -> 0 | L7: =J7*L$4 -> 0 | M7: 0 | N7: 0 | O7: =$O$3*I7*O$4 -> 0
B8: Accounting | D8: CFO | E8: ='payroll.tax Y2'!F8 -> 84000 | F8: 88200 | I8: ='payroll.tax Y2'!I8 -> 1 | J8: =F8*I8 -> 88200 | K8: =J8/I8 -> 88200 | L8: 5468.4 | M8: 1278.9 | N8: 0 | O8: 0
D9: Assistant accountants | E9: ='payroll.tax Y2'!F9 -> 36750 | F9: 38587.5 | I9: ='payroll.tax Y2'!I9 -> 1 | J9: =F9*I9 -> 38587.5 | K9: =J9/I9 -> 38587.5 | L9: 2392.425 | M9: 559.51875 | N9: 0 | O9: 0
B10: Customer Satisfaction | D10: Customer Service Manager | E10: ='payroll.tax Y2'!F10 -> 84000 | F10: 88200 | I10: ='payroll.tax Y2'!I10 -> 1 | J10: =F10*I10 -> 88200 | K10: =J10/I10 -> 88200 | L10: 5468.4 | M10: 1278.9 | N10: 0 | O10: 0
D11: Reception_Entrance Room | E11: ='payroll.tax Y2'!F11 -> 21 | F11: 22.05 | G11: 8 | H11: 365 | I11: ='payroll.tax Y2'!I11 -> 4 | J11: =F11*G11*H11*I11 -> 257544 | K11: =J11/I11 -> 64386 | L11: 15967.728 | M11: 3734.388 | N11: 0 | O11: 0
D12: Reception_Gift Shop | E12: ='payroll.tax Y2'!F12 -> 21 | F12: 22.05 | G12: 8 | H12: 365 | I12: ='payroll.tax Y2'!I12 -> 0 | J12: 0 | L12: 0 | M12: 0 | N12: =11400*I12*N$4 -> 0 | O12: 0
D13: Reception_Customer Service | E13: ='payroll.tax Y2'!F13 -> 21 | F13: 22.05 | G13: 8 | H13: 365 | I13: ='payroll.tax Y2'!I13 -> 0 | J13: 0 | L13: 0 | M13: 0 | N13: 0 | O13: 0
E14: ='payroll.tax Y2'!F14 -> 0 | F14: 0 | I14: ='payroll.tax Y2'!I14 -> 0 | J14: 0 | N14: 0 | O14: 0
B15: Management | D15: Maintenance Manager | E15: ='payroll.tax Y2'!F15 -> 126000 | F15: 132300 | I15: ='payroll.tax Y2'!I15 -> 1 | J15: =F15*I15 -> 132300 | K15: 132300 | L15: =J15*L$4 -> 8202.6 | M15: =J15*M$4 -> 1918.35 | N15: 0 | O15: 0
D16: Building & Pool Maintenance | E16: ='payroll.tax Y2'!F16 -> 21 | F16: 22.05 | G16: 12 | H16: 365 | I16: ='payroll.tax Y2'!I16 -> 3 | J16: 289737 | K16: 96579 | L16: 17963.694 | M16: 4201.1865 | N16: 0 | O16: 0
D17: House Keeper(Service Personal) | E17: ='payroll.tax Y2'!F17 -> 21 | F17: 22.05 | G17: 8 | H17: 365 | I17: ='payroll.tax Y2'!I17 -> 2 | J17: 128772 | K17: 64386 | L17: 7983.864 | M17: 1867.194 | N17: 0 | O17: 0
D18: Security Manager | E18: ='payroll.tax Y2'!F18 -> 21 | F18: 22.05 | G18: 8 | H18: 365 | I18: ='payroll.tax Y2'!I18 -> 0 | J18: 0 | L18: 0 | M18: 0 | N18: 0 | O18: 0
E19: ='payroll.tax Y2'!F19 -> 21 | F19: 22.05 | I19: ='payroll.tax Y2'!I19 -> 0
D20: IT | E20: ='payroll.tax Y2'!F20 -> 84000 | F20: 88200 | I20: ='payroll.tax Y2'!I20 -> 1 | J20: =F20*I20 -> 88200 | K20: =J20/I20 -> 88200 | L20: 5468.4 | M20: =J20*M$4 -> 1278.9 | N20: =11400*I20*N$4 -> 0 | O20: 0
E21: ='payroll.tax Y2'!F21 -> 0 | F21: 0 | I21: ='payroll.tax Y2'!I21 -> 0
E22: ='payroll.tax Y2'!F22 -> 0 | F22: 0 | I22: ='payroll.tax Y2'!I22 -> 0
B23: Food | C23: Restaurant & Café | D23: Food & Beverage | E23: ='payroll.tax Y2'!F23 -> 21 | F23: 22.05 | G23: 8 | H23: 365 | I23: ='payroll.tax Y2'!I23 -> 3 | J23: 193158 | M23: 2800.791 | N23: 0 | O23: 0
D24: Restaurant Cook | E24: ='payroll.tax Y2'!F24 -> 0 | F24: 0 | I24: ='payroll.tax Y2'!I24 -> 0 | J24: =F24*I24 -> 0 | L24: =J24*L$4 -> 0 | M24: 0 | N24: 0 | O24: 0
D25: Restaurant Cook Assistant | E25: ='payroll.tax Y2'!F25 -> 0 | F25: 0 | G25: 8 | H25: 365 | I25: ='payroll.tax Y2'!I25 -> 0 | J25: 0 | L25: =J25*L$4 -> 0 | M25: 0 | N25: 0 | O25: 0
D26: Restaurant Cashier | E26: ='payroll.tax Y2'!F26 -> 0 | F26: 0 | G26: 8 | H26: 365 | I26: ='payroll.tax Y2'!I26 -> 0 | J26: 0 | L26: =J26*L$4 -> 0 | M26: 0 | N26: 0 | O26: 0
E27: ='payroll.tax Y2'!F27 -> 0 | F27: 0 | I27: ='payroll.tax Y2'!I27 -> 0 | J27: 0 | M27: 0 | N27: 0 | O27: 0
B28: Shuttle bus | D28: Driver | E28: ='payroll.tax Y2'!F28 -> 84000 | F28: 88200 | I28: ='payroll.tax Y2'!I28 -> 0 | J28: =F28*I28 -> 0 | M28: 0 | N28: 0 | O28: 0
E29: ='payroll.tax Y2'!F29 -> 0 | F29: 0 | I29: ='payroll.tax Y2'!I29 -> 0
E30: ='payroll.tax Y2'!F30 -> 0 | F30: 0 | I30: ='payroll.tax Y2'!I30 -> 0
E31: ='payroll.tax Y2'!F31 -> 0 | F31: 0 | I31: ='payroll.tax Y2'!I31 -> 0 | J31: 0 | M31: 0 | N31: 0 | O31: 0
B32: Spa | D32: Spa Service Manager | E32: ='payroll.tax Y2'!F32 -> 84000 | F32: 88200 | I32: ='payroll.tax Y2'!I32 -> 1 | J32: =F32*I32 -> 88200 | K32: =J32/I32 -> 88200 | L32: =J32*L$4 -> 5468.4 | M32: 1278.9 | N32: 0 | O32: 0
B33: Massage Program (with Body Scrub) | D33: Spa Employees | E33: ='payroll.tax Y2'!F33 -> 21 | F33: 22.05 | G33: 8 | H33: 365 | I33: ='payroll.tax Y2'!I33 -> 10 | J33: 643860 | K33: 64386 | L33: =J33*L$4 -> 39919.32 | M33: 9335.97 | N33: 0 | O33: 0
K34: Sub Tax | L34: =SUM(L6:L33) -> 126607.131 | M34: =SUM(M6:M33) -> 32410.52325 | N34: =SUM(N6:N33) -> 0 | O34: =SUM(O6:O33) -> 0
B36: Total | I36: =SUM(I6:I33) -> 29 | J36: =SUM(J6:J33) -> 2235208.5 | K36: Total Tax | L36: =L34+M34+N34+O34 -> 159017.6542
H37: AVG | I37: MONTHLY PAYMENT | J37: =J36/12 -> 186267.375 | L37: MONTHLY PAYROLL-TAX | M37: =L36/12 -> 13251.47119
H38: AVG | I38: Year/Person | J38: =J36/I36 -> 77076.15517

Sheet payroll.tax Y4
B2: Payroll & Payroll Tax (Year 4)
L3: Fed. Tax | N3: State UI Base | O3: ='Fed.NYS.Tax-UI-BASE'!B14 -> 0
F4: +5% | L4: 0.062 | M4: 0.0145 | O4: ='Fed.NYS.Tax-UI-BASE'!H13 -> 0.006
E5: Year 3 Rate | F5: Year 4 Rate | G5: Hour | H5: Day 365 | I5: Persons | J5: Yearly Wage | K5: Wage Per Person | L5: SS Tax | M5: Med tax | N5: UI N.Employer | O5: NYS U.I
B6: General Manager | D6: General Manager | E6: ='payroll.tax Y3'!F6 -> 198450 | F6: =E6*(1+$F$4) -> 208372.5 | H6: ='payroll.tax Y3'!I6 -> 1 | I6: ='payroll.tax Y3'!I6 -> 1 | J6: =F6*I6 -> 208372.5 | K6: =J6/I6 -> 208372.5 | L6: =J6*L4 -> 12919.095 | M6: =J6*M$4 -> 3021.40125 | N6: =11400*I6*N$4 -> 0 | O6: =$O$3*I6*O$4 -> 0
E7: ='payroll.tax Y3'!F7 -> 0 | F7: =E7*(1+$F$4) -> 0 | I7: ='payroll.tax Y3'!I7 -> 0 | J7: =F7*G7*H7*I7 -> 0 | L7: =J7*L$4 -> 0 | M7: 0 | N7: 0 | O7: =$O$3*I7*O$4 -> 0
B8: Accounting | D8: CFO | E8: ='payroll.tax Y3'!F8 -> 88200 | F8: 92610 | I8: ='payroll.tax Y3'!I8 -> 1 | J8: =F8*I8 -> 92610 | K8: =J8/I8 -> 92610 | L8: 5741.82 | M8: 1342.845 | N8: 0 | O8: 0
D9: Assistant accountants | E9: ='payroll.tax Y3'!F9 -> 38587.5 | F9: 40516.875 | I9: ='payroll.tax Y3'!I9 -> 1 | J9: =F9*I9 -> 40516.875 | K9: =J9/I9 -> 40516.875 | L9: 2512.04625 | M9: 587.4946875 | N9: 0 | O9: 0
B10: Customer Satisfaction | D10: Customer Service Manager | E10: ='payroll.tax Y3'!F10 -> 88200 | F10: 92610 | I10: ='payroll.tax Y3'!I10 -> 1 | J10: =F10*I10 -> 92610 | K10: =J10/I10 -> 92610 | L10: 5741.82 | M10: 1342.845 | N10: 0 | O10: 0
D11: Reception_Entrance Room | E11: ='payroll.tax Y3'!F11 -> 22.05 | F11: 23.1525 | G11: 8 | H11: 365 | I11: ='payroll.tax Y3'!I11 -> 4 | J11: =F11*G11*H11*I11 -> 270421.2 | K11: =J11/I11 -> 67605.3 | L11: 16766.1144 | M11: 3921.1074 | N11: 0 | O11: 0
D12: Reception_Gift Shop | E12: ='payroll.tax Y3'!F12 -> 22.05 | F12: 23.1525 | G12: 8 | H12: 365 | I12: ='payroll.tax Y3'!I12 -> 0 | J12: 0 | L12: 0 | M12: 0 | N12: 0 | O12: 0
D13: Reception_Customer Service | E13: ='payroll.tax Y3'!F13 -> 22.05 | F13: 23.1525 | G13: 8 | H13: 365 | I13: ='payroll.tax Y3'!I13 -> 0 | J13: 0 | L13: 0 | M13: 0 | N13: 0 | O13: 0
E14: ='payroll.tax Y3'!F14 -> 0 | F14: 0 | I14: ='payroll.tax Y3'!I14 -> 0 | J14: 0 | N14: 0 | O14: 0
B15: Management | D15: Maintenance Manager | E15: ='payroll.tax Y3'!F15 -> 132300 | F15: 138915 | I15: ='payroll.tax Y3'!I15 -> 1 | J15: =F15*I15 -> 138915 | K15: 138915 | L15: =J15*L$4 -> 8612.73 | M15: =J15*M$4 -> 2014.2675 | N15: 0 | O15: 0
D16: Building & Pool Maintenance | E16: ='payroll.tax Y3'!F16 -> 22.05 | F16: 23.1525 | G16: 12 | H16: 365 | I16: ='payroll.tax Y3'!I16 -> 3 | J16: 304223.85 | K16: 101407.95 | L16: 18861.8787 | M16: 4411.245825 | N16: 0 | O16: 0
D17: House Keeper(Service Personal) | E17: ='payroll.tax Y3'!F17 -> 22.05 | F17: 23.1525 | G17: 8 | H17: 365 | I17: ='payroll.tax Y3'!I17 -> 2 | J17: 135210.6 | K17: 67605.3 | L17: 8383.0572 | M17: 1960.5537 | N17: 0 | O17: 0
D18: Security Manager | E18: ='payroll.tax Y3'!F18 -> 22.05 | F18: 23.1525 | G18: 8 | H18: 365 | I18: ='payroll.tax Y3'!I18 -> 0 | J18: 0 | L18: 0 | M18: 0 | N18: 0 | O18: 0
E19: ='payroll.tax Y3'!F19 -> 22.05 | F19: 23.1525 | I19: ='payroll.tax Y3'!I19 -> 0
D20: IT | E20: ='payroll.tax Y3'!F20 -> 88200 | F20: 92610 | I20: ='payroll.tax Y3'!I20 -> 1 | J20: =F20*I20 -> 92610 | K20: =J20/I20 -> 92610 | L20: 5741.82 | M20: =J20*M$4 -> 1342.845 | N20: =11400*I20*N$4 -> 0 | O20: 0
E21: ='payroll.tax Y3'!F21 -> 0 | F21: 0 | I21: ='payroll.tax Y3'!I21 -> 0
E22: ='payroll.tax Y3'!F22 -> 0 | F22: 0 | I22: ='payroll.tax Y3'!I22 -> 0
B23: Food | C23: Restaurant & Café | D23: Food & Beverage | E23: ='payroll.tax Y3'!F23 -> 22.05 | F23: 23.1525 | G23: 8 | H23: 365 | I23: ='payroll.tax Y3'!I23 -> 3 | J23: 202815.9 | M23: 2940.83055 | N23: 0 | O23: 0
D24: Restaurant Cook | E24: ='payroll.tax Y3'!F24 -> 0 | F24: 0 | I24: ='payroll.tax Y3'!I24 -> 0 | J24: =F24*I24 -> 0 | L24: =J24*L$4 -> 0 | M24: 0 | N24: 0 | O24: 0
D25: Restaurant Cook Assistant | E25: ='payroll.tax Y3'!F25 -> 0 | F25: 0 | G25: 8 | H25: 365 | I25: ='payroll.tax Y3'!I25 -> 0 | J25: 0 | L25: =J25*L$4 -> 0 | M25: 0 | N25: 0 | O25: 0
D26: Restaurant Cashier | E26: ='payroll.tax Y3'!F26 -> 0 | F26: 0 | G26: 8 | H26: 365 | I26: ='payroll.tax Y3'!I26 -> 0 | J26: 0 | L26: =J26*L$4 -> 0 | M26: 0 | N26: 0 | O26: 0
E27: ='payroll.tax Y3'!F27 -> 0 | F27: 0 | I27: ='payroll.tax Y3'!I27 -> 0 | J27: 0 | M27: 0 | N27: 0 | O27: 0
B28: Shuttle bus | D28: Driver | E28: ='payroll.tax Y3'!F28 -> 88200 | F28: 92610 | I28: ='payroll.tax Y3'!I28 -> 0 | J28: =F28*I28 -> 0 | M28: 0 | N28: 0 | O28: 0
E29: ='payroll.tax Y3'!F29 -> 0 | F29: 0 | I29: ='payroll.tax Y3'!I29 -> 0
E30: ='payroll.tax Y3'!F30 -> 0 | F30: 0 | I30: ='payroll.tax Y3'!I30 -> 0
E31: ='payroll.tax Y3'!F31 -> 0 | F31: 0 | I31: ='payroll.tax Y3'!I31 -> 0 | J31: 0 | M31: 0 | N31: 0 | O31: 0
B32: Spa | D32: Spa Service Manager | E32: ='payroll.tax Y3'!F32 -> 88200 | F32: 92610 | I32: ='payroll.tax Y3'!I32 -> 1 | J32: =F32*I32 -> 92610 | K32: =J32/I32 -> 92610 | L32: =J32*L$4 -> 5741.82 | M32: 1342.845 | N32: 0 | O32: 0
B33: Massage Program (with Body Scrub) | D33: Spa Employees | E33: ='payroll.tax Y3'!F33 -> 22.05 | F33: 23.1525 | G33: 8 | H33: 365 | I33: ='payroll.tax Y3'!I33 -> 10 | J33: 676053 | K33: 67605.3 | L33: =J33*L$4 -> 41915.286 | M33: 9802.7685 | N33: 0 | O33: 0
K34: Sub Tax | L34: =SUM(L6:L33) -> 132937.4875 | M34: =SUM(M6:M33) -> 34031.04941 | N34: =SUM(N6:N33) -> 0 | O34: =SUM(O6:O33) -> 0
B36: Total | I36: =SUM(I6:I33) -> 29 | J36: =SUM(J6:J33) -> 2346968.925 | K36: Total Tax | L36: =L34+M34+N34+O34 -> 166968.537
H37: AVG | I37: MONTHLY PAYMENT | J37: =J36/12 -> 195580.7438 | L37: MONTHLY PAYROLL-TAX | M37: =L36/12 -> 13914.04475
H38: AVG | I38: Year/Person | J38: =J36/I36 -> 80929.96293

Sheet payroll.tax Y5
B2: Payroll & Payroll Tax (Year 5)
L3: Fed. Tax | N3: State UI Base | O3: ='Fed.NYS.Tax-UI-BASE'!B14 -> 0
F4: +5% | L4: 0.062 | M4: 0.0145 | O4: ='Fed.NYS.Tax-UI-BASE'!H13 -> 0.006
E5: Year 4 Rate | F5: Year 5 Rate | G5: Hour | H5: Day 365 | I5: Persons | J5: Yearly Wage | K5: Wage Per Person | L5: SS Tax | M5: Med tax | N5: UI N.Employer | O5: NYS U.I
B6: General Manager | D6: General Manager | E6: ='payroll.tax Y4'!F6 -> 208372.5 | F6: =E6*(1+$F$4) -> 218791.125 | I6: ='payroll.tax Y4'!I6 -> 1 | J6: =F6*I6 -> 218791.125 | K6: =J6/I6 -> 218791.125 | L6: =J6*L4 -> 13565.04975 | M6: =J6*M$4 -> 3172.471313 | N6: =11400*I6*N$4 -> 0 | O6: =$O$3*I6*O$4 -> 0
E7: ='payroll.tax Y4'!F7 -> 0 | F7: =E7*(1+$F$4) -> 0 | I7: ='payroll.tax Y4'!I7 -> 0 | J7: =F7*G7*H7*I7 -> 0 | L7: =J7*L$4 -> 0 | M7: 0 | N7: 0 | O7: =$O$3*I7*O$4 -> 0
B8: Accounting | D8: CFO | E8: ='payroll.tax Y4'!F8 -> 92610 | F8: 97240.5 | I8: ='payroll.tax Y4'!I8 -> 1 | J8: =F8*I8 -> 97240.5 | K8: =J8/I8 -> 97240.5 | L8: 6028.911 | M8: 1409.98725 | N8: 0 | O8: 0
D9: Assistant accountants | E9: ='payroll.tax Y4'!F9 -> 40516.875 | F9: 42542.71875 | I9: ='payroll.tax Y4'!I9 -> 1 | J9: =F9*I9 -> 42542.71875 | K9: =J9/I9 -> 42542.71875 | L9: 2637.648563 | M9: 616.8694219 | N9: 0 | O9: 0
B10: Customer Satisfaction | D10: Customer Service Manager | E10: ='payroll.tax Y4'!F10 -> 92610 | F10: 97240.5 | I10: ='payroll.tax Y4'!I10 -> 1 | J10: =F10*I10 -> 97240.5 | K10: =J10/I10 -> 97240.5 | L10: 6028.911 | M10: 1409.98725 | N10: 0 | O10: 0
D11: Reception_Entrance Room | E11: ='payroll.tax Y4'!F11 -> 23.1525 | F11: 24.310125 | G11: 8 | H11: 365 | I11: ='payroll.tax Y4'!I11 -> 4 | J11: =F11*G11*H11*I11 -> 283942.26 | K11: =J11/I11 -> 70985.565 | L11: 17604.42012 | M11: 4117.16277 | N11: 0 | O11: 0
D12: Reception_Gift Shop | E12: ='payroll.tax Y4'!F12 -> 23.1525 | F12: 24.310125 | G12: 8 | H12: 365 | I12: ='payroll.tax Y4'!I12 -> 0 | J12: 0 | L12: 0 | M12: 0 | N12: 0 | O12: 0
D13: Reception_Customer Service | E13: ='payroll.tax Y4'!F13 -> 23.1525 | F13: 24.310125 | G13: 8 | H13: 365 | I13: ='payroll.tax Y4'!I13 -> 0 | J13: 0 | L13: 0 | M13: 0 | N13: 0 | O13: 0
E14: ='payroll.tax Y4'!F14 -> 0 | F14: 0 | I14: ='payroll.tax Y4'!I14 -> 0 | J14: 0 | N14: 0 | O14: 0
B15: Management | D15: Maintenance Manager | E15: ='payroll.tax Y4'!F15 -> 138915 | F15: 145860.75 | I15: ='payroll.tax Y4'!I15 -> 1 | J15: =F15*I15 -> 145860.75 | K15: 145860.75 | L15: =J15*L$4 -> 9043.3665 | M15: =J15*M$4 -> 2114.980875 | N15: 0 | O15: 0
D16: Building & Pool Maintenance | E16: ='payroll.tax Y4'!F16 -> 23.1525 | F16: 24.310125 | G16: 12 | H16: 365 | I16: ='payroll.tax Y4'!I16 -> 3 | J16: 319435.0425 | K16: 106478.3475 | L16: 19804.97264 | M16: 4631.808116 | N16: 0 | O16: 0
D17: House Keeper(Service Personal) | E17: ='payroll.tax Y4'!F17 -> 23.1525 | F17: 24.310125 | G17: 8 | H17: 365 | I17: ='payroll.tax Y4'!I17 -> 2 | J17: 141971.13 | K17: 70985.565 | L17: 8802.21006 | M17: 2058.581385 | N17: 0 | O17: 0
D18: Security Manager | E18: ='payroll.tax Y4'!F18 -> 23.1525 | F18: 24.310125 | G18: 8 | H18: 365 | I18: ='payroll.tax Y4'!I18 -> 0 | J18: 0 | L18: 0 | M18: 0 | N18: 0 | O18: 0
E19: ='payroll.tax Y4'!F19 -> 23.1525 | F19: 24.310125 | I19: ='payroll.tax Y4'!I19 -> 0
D20: IT | E20: ='payroll.tax Y4'!F20 -> 92610 | F20: 97240.5 | I20: ='payroll.tax Y4'!I20 -> 1 | J20: =F20*I20 -> 97240.5 | K20: =J20/I20 -> 97240.5 | L20: 6028.911 | M20: =J20*M$4 -> 1409.98725 | N20: =11400*I20*N$4 -> 0 | O20: 0
E21: ='payroll.tax Y4'!F21 -> 0 | F21: 0 | I21: ='payroll.tax Y4'!I21 -> 0
E22: ='payroll.tax Y4'!F22 -> 0 | F22: 0 | I22: ='payroll.tax Y4'!I22 -> 0
B23: Food | C23: Restaurant & Café | D23: Food & Beverage | E23: ='payroll.tax Y4'!F23 -> 23.1525 | F23: 24.310125 | G23: 8 | H23: 365 | I23: ='payroll.tax Y4'!I23 -> 3 | J23: 212956.695 | M23: 3087.872078 | N23: 0 | O23: 0
D24: Restaurant Cook | E24: ='payroll.tax Y4'!F24 -> 0 | F24: 0 | I24: ='payroll.tax Y4'!I24 -> 0 | J24: =F24*I24 -> 0 | L24: =J24*L$4 -> 0 | M24: 0 | N24: 0 | O24: 0
D25: Restaurant Cook Assistant | E25: ='payroll.tax Y4'!F25 -> 0 | F25: 0 | G25: 8 | H25: 365 | I25: ='payroll.tax Y4'!I25 -> 0 | J25: 0 | L25: =J25*L$4 -> 0 | M25: 0 | N25: 0 | O25: 0
D26: Restaurant Cashier | E26: ='payroll.tax Y4'!F26 -> 0 | F26: 0 | G26: 8 | H26: 365 | I26: ='payroll.tax Y4'!I26 -> 0 | J26: 0 | L26: =J26*L$4 -> 0 | M26: 0 | N26: 0 | O26: 0
E27: ='payroll.tax Y4'!F27 -> 0 | F27: 0 | I27: ='payroll.tax Y4'!I27 -> 0 | J27: 0 | M27: 0 | N27: 0 | O27: 0
B28: Shuttle bus | D28: Driver | E28: ='payroll.tax Y4'!F28 -> 92610 | F28: 97240.5 | I28: ='payroll.tax Y4'!I28 -> 0 | J28: =F28*I28 -> 0 | M28: 0 | N28: 0 | O28: 0
E29: ='payroll.tax Y4'!F29 -> 0 | F29: 0 | I29: ='payroll.tax Y4'!I29 -> 0
E30: ='payroll.tax Y4'!F30 -> 0 | F30: 0 | I30: ='payroll.tax Y4'!I30 -> 0
E31: ='payroll.tax Y4'!F31 -> 0 | F31: 0 | I31: ='payroll.tax Y4'!I31 -> 0 | J31: 0 | M31: 0 | N31: 0 | O31: 0
B32: Spa | D32: Spa Service Manager | E32: ='payroll.tax Y4'!F32 -> 92610 | F32: 97240.5 | I32: ='payroll.tax Y4'!I32 -> 1 | J32: =F32*I32 -> 97240.5 | K32: =J32/I32 -> 97240.5 | L32: =J32*L$4 -> 6028.911 | M32: 1409.98725 | N32: 0 | O32: 0
B33: Massage Program (with Body Scrub) | D33: Spa Employees | E33: ='payroll.tax Y4'!F33 -> 23.1525 | F33: 24.310125 | G33: 8 | H33: 365 | I33: ='payroll.tax Y4'!I33 -> 10 | J33: 709855.65 | K33: 70985.565 | L33: =J33*L$4 -> 44011.0503 | M33: 10292.90693 | N33: 0 | O33: 0
K34: Sub Tax | L34: =SUM(L6:L33) -> 139584.3619 | M34: =SUM(M6:M33) -> 35732.60188 | N34: =SUM(N6:N33) -> 0 | O34: =SUM(O6:O33) -> 0
B36: Total | I36: =SUM(I6:I33) -> 29 | J36: =SUM(J6:J33) -> 2464317.371 | K36: Total Tax | L36: =L34+M34+N34+O34 -> 175316.9638
H37: AVG | I37: MONTHLY PAYMENT | J37: =J36/12 -> 205359.7809 | L37: MONTHLY PAYROLL-TAX | M37: =L36/12 -> 14609.74698
H38: AVG | I38: Year/Person | J38: =J36/I36 -> 84976.46108

Sheet Fed.NYS.Tax-UI-BASE
A2: Estimated number of Employees | B2: 44
C3: FED FICA | G3: State UI (rate x UI Wage Base)
B4: Average Wage | C4: SS (6.2%) | D4: MC (1.45%) | E4: Subtotal | G4: UI (vary)* | H4: Re-employment(0.075%) | I4: Subtotal | K4: Total/person | L4: Total per year
A5: Year 1 | B5: ='payroll.tax Y1'!I38 -> 69910.34483 | C5: =+B5*6.2% -> 4334.441379 | D5: =+B5*1.45% -> 1013.7 | E5: =+D5+C5 -> 5348.141379 | G5: =B11*2.5% -> 290 | H5: =B11*0.075% -> 8.7 | I5: =G5+H5 -> 298.7 | K5: =+I5+E5 -> 5646.841379 | L5: =+K5*$B$2 -> 248461.0207
A6: Year 2 | B6: ='payroll.tax Y2'!J38 -> 73405.86207 | C6: =+B6*6.2% -> 4551.163448 | D6: =+B6*1.45% -> 1064.385 | E6: =+D6+C6 -> 5615.548448 | G6: =B12*L15 -> 61.95 | H6: =B12*0.075% -> 8.85 | I6: =G6+H6 -> 70.8 | K6: =+I6+E6 -> 5686.348448 | L6: =+K6*$B$2 -> 250199.3317
A7: Year 3 | B7: ='payroll.tax Y3'!J38 -> 77076.15517 | C7: =+B7*6.2% -> 4778.721621 | D7: =+B7*1.45% -> 1117.60425 | E7: =+D7+C7 -> 5896.325871 | G7: =B13*0.525% -> 63 | H7: =B13*0.075% -> 9 | I7: =G7+H7 -> 72 | K7: =+I7+E7 -> 5968.325871 | L7: =+K7*$B$2 -> 262606.3383
B10: UI Wage Base (Estimated after 2023) | E10: UI Rate | G10: Re-employ | H10: UI Final Rate
A11: Year 1 | B11: 11600 | E11: 0.025 | G11: 0.00075 | H11: =E11+0.075% -> 0.02575 | L11: 0.00525 | M11: 4Q
A12: Year 2 | B12: 11800 | E12: =L15 -> 0.00525 | G12: 0.00075 | H12: =E12+0.075% -> 0.006 | L12: 0.00525 | M12: 3Q
A13: Year 3 | B13: 12000 | E13: 0.00525 | G13: 0.00075 | H13: =E13+0.075% -> 0.006 | L13: 0.00525 | M13: 2Q
L15: =AVERAGE(L11:L14) -> 0.00525 | M15: Average
B17: * UI Contribution rate is for New Employer
B19: Newly Liable Employers Newly liable employers (who, with any previous owners of the business, are liable for fewer than five completed calendar quarters as of December 31, 2018) are assigned the normal contribution rate from the positive “2.5% but less than 3.0%” bracket on the Normal Contribution Rate Table for this year’s Size-ofFund Index (This rate cannot exceed 3.4%). The New Employer normal contribution rate for 2019 is 2.5%.
